{"text_format":"3","workbook":"xlsx","n_sheets":2,"sheets":["Planificare cursuri","Listă cursuri"],"not_rendered":{"defined_names":17},"read":"whole","date_system":"1900"}

{"sheet":"Planificare cursuri","index":0,"n_rows":56,"n_cols":9,"rows_kept":56,"merged":[[0,1,1,5],[0,8,1,8]]}
[null,"PLANIFICARE CURSURI",{"$nulls":4},"ÎNCEPUTUL PLANIFICĂRII","INTERVAL DE TIMP","Listă cursuri"]
[{"$nulls":6},"08:00:00","15 MIN"]
[null,"ORA","DUMINICĂ","LUNI","MARȚI","MIERCURI","JOI","VINERI","SÂMBĂTĂ"]
[null,{"$f":"ÎnceputulPlanificării","v":"08:00:00"},{"$f":"IFERROR(INDEX(ListăCursuri[],MATCH(SUMPRODUCT((ListăCursuri[ZIUA]=OrarulCursurilor[[#Headers],[DUMINICĂ]])*(ROUNDDOWN($B4,10)>=ROUNDDOWN(ListăCursuri[ORA DE ÎNCEPUT],10))*($B4<=ListăCursuri[ORA DE SFÂRȘIT]),ListăCursuri[UNICE]),ListăCursuri[UNICE],0),2),0)","v":0},{"$f":"IFERROR(INDEX(ListăCursuri[],MATCH(SUMPRODUCT((ListăCursuri[ZIUA]=OrarulCursurilor[[#Headers],[LUNI]])*(ROUNDDOWN($B4,10)>=ROUNDDOWN(ListăCursuri[ORA DE ÎNCEPUT],10))*($B4<=ListăCursuri[ORA DE SFÂRȘIT]),ListăCursuri[UNICE]),ListăCursuri[UNICE],0),2),0)","v":0},{"$f":"IFERROR(INDEX(ListăCursuri[],MATCH(SUMPRODUCT((ListăCursuri[ZIUA]=OrarulCursurilor[[#Headers],[MARȚI]])*(ROUNDDOWN($B4,10)>=ROUNDDOWN(ListăCursuri[ORA DE ÎNCEPUT],10))*($B4<=ListăCursuri[ORA DE SFÂRȘIT]),ListăCursuri[UNICE]),ListăCursuri[UNICE],0),2),0)","v":0},{"$f":"IFERROR(INDEX(ListăCursuri[],MATCH(SUMPRODUCT((ListăCursuri[ZIUA]=OrarulCursurilor[[#Headers],[MIERCURI]])*(ROUNDDOWN($B4,10)>=ROUNDDOWN(ListăCursuri[ORA DE ÎNCEPUT],10))*($B4<=ListăCursuri[ORA DE SFÂRȘIT]),ListăCursuri[UNICE]),ListăCursuri[UNICE],0),2),0)","v":0},{"$f":"IFERROR(INDEX(ListăCursuri[],MATCH(SUMPRODUCT((ListăCursuri[ZIUA]=OrarulCursurilor[[#Headers],[JOI]])*(ROUNDDOWN($B4,10)>=ROUNDDOWN(ListăCursuri[ORA DE ÎNCEPUT],10))*($B4<=ListăCursuri[ORA DE SFÂRȘIT]),ListăCursuri[UNICE]),ListăCursuri[UNICE],0),2),0)","v":0},{"$f":"IFERROR(INDEX(ListăCursuri[],MATCH(SUMPRODUCT((ListăCursuri[ZIUA]=OrarulCursurilor[[#Headers],[VINERI]])*(ROUNDDOWN($B4,10)>=ROUNDDOWN(ListăCursuri[ORA DE ÎNCEPUT],10))*($B4<=ListăCursuri[ORA DE SFÂRȘIT]),ListăCursuri[UNICE]),ListăCursuri[UNICE],0),2),0)","v":0},{"$f":"IFERROR(INDEX(ListăCursuri[],MATCH(SUMPRODUCT((ListăCursuri[ZIUA]=OrarulCursurilor[[#Headers],[SÂMBĂTĂ]])*(ROUNDDOWN($B4,10)>=ROUNDDOWN(ListăCursuri[ORA DE ÎNCEPUT],10))*($B4<=ListăCursuri[ORA DE SFÂRȘIT]),ListăCursuri[UNICE]),ListăCursuri[UNICE],0),2),0)","v":0}]
[null,{"$f":"B4+Increment","v":"08:15:00"},{"$f":"IFERROR(INDEX(ListăCursuri[],MATCH(SUMPRODUCT((ListăCursuri[ZIUA]=OrarulCursurilor[[#Headers],[DUMINICĂ]])*(ROUNDDOWN($B5,10)>=ROUNDDOWN(ListăCursuri[ORA DE ÎNCEPUT],10))*($B5<=ListăCursuri[ORA DE SFÂRȘIT]),ListăCursuri[UNICE]),ListăCursuri[UNICE],0),2),0)","v":0},{"$f":"IFERROR(INDEX(ListăCursuri[],MATCH(SUMPRODUCT((ListăCursuri[ZIUA]=OrarulCursurilor[[#Headers],[LUNI]])*(ROUNDDOWN($B5,10)>=ROUNDDOWN(ListăCursuri[ORA DE ÎNCEPUT],10))*($B5<=ListăCursuri[ORA DE SFÂRȘIT]),ListăCursuri[UNICE]),ListăCursuri[UNICE],0),2),0)","v":"MAT-113"},{"$f":"IFERROR(INDEX(ListăCursuri[],MATCH(SUMPRODUCT((ListăCursuri[ZIUA]=OrarulCursurilor[[#Headers],[MARȚI]])*(ROUNDDOWN($B5,10)>=ROUNDDOWN(ListăCursuri[ORA DE ÎNCEPUT],10))*($B5<=ListăCursuri[ORA DE SFÂRȘIT]),ListăCursuri[UNICE]),ListăCursuri[UNICE],0),2),0)","v":0},{"$f":"IFERROR(INDEX(ListăCursuri[],MATCH(SUMPRODUCT((ListăCursuri[ZIUA]=OrarulCursurilor[[#Headers],[MIERCURI]])*(ROUNDDOWN($B5,10)>=ROUNDDOWN(ListăCursuri[ORA DE ÎNCEPUT],10))*($B5<=ListăCursuri[ORA DE SFÂRȘIT]),ListăCursuri[UNICE]),ListăCursuri[UNICE],0),2),0)","v":"MAT-113"},{"$f":"IFERROR(INDEX(ListăCursuri[],MATCH(SUMPRODUCT((ListăCursuri[ZIUA]=OrarulCursurilor[[#Headers],[JOI]])*(ROUNDDOWN($B5,10)>=ROUNDDOWN(ListăCursuri[ORA DE ÎNCEPUT],10))*($B5<=ListăCursuri[ORA DE SFÂRȘIT]),ListăCursuri[UNICE]),ListăCursuri[UNICE],0),2),0)","v":0},{"$f":"IFERROR(INDEX(ListăCursuri[],MATCH(SUMPRODUCT((ListăCursuri[ZIUA]=OrarulCursurilor[[#Headers],[VINERI]])*(ROUNDDOWN($B5,10)>=ROUNDDOWN(ListăCursuri[ORA DE ÎNCEPUT],10))*($B5<=ListăCursuri[ORA DE SFÂRȘIT]),ListăCursuri[UNICE]),ListăCursuri[UNICE],0),2),0)","v":"MAT-113"},{"$f":"IFERROR(INDEX(ListăCursuri[],MATCH(SUMPRODUCT((ListăCursuri[ZIUA]=OrarulCursurilor[[#Headers],[SÂMBĂTĂ]])*(ROUNDDOWN($B5,10)>=ROUNDDOWN(ListăCursuri[ORA DE ÎNCEPUT],10))*($B5<=ListăCursuri[ORA DE SFÂRȘIT]),ListăCursuri[UNICE]),ListăCursuri[UNICE],0),2),0)","v":0}]
[null,"08:30:00",{"$f":"IFERROR(INDEX(ListăCursuri[],MATCH(SUMPRODUCT((ListăCursuri[ZIUA]=OrarulCursurilor[[#Headers],[DUMINICĂ]])*(ROUNDDOWN($B6,10)>=ROUNDDOWN(ListăCursuri[ORA DE ÎNCEPUT],10))*($B6<=ListăCursuri[ORA DE SFÂRȘIT]),ListăCursuri[UNICE]),ListăCursuri[UNICE],0),2),0)","v":0},{"$f":"IFERROR(INDEX(ListăCursuri[],MATCH(SUMPRODUCT((ListăCursuri[ZIUA]=OrarulCursurilor[[#Headers],[LUNI]])*(ROUNDDOWN($B6,10)>=ROUNDDOWN(ListăCursuri[ORA DE ÎNCEPUT],10))*($B6<=ListăCursuri[ORA DE SFÂRȘIT]),ListăCursuri[UNICE]),ListăCursuri[UNICE],0),2),0)","v":"MAT-113"},{"$f":"IFERROR(INDEX(ListăCursuri[],MATCH(SUMPRODUCT((ListăCursuri[ZIUA]=OrarulCursurilor[[#Headers],[MARȚI]])*(ROUNDDOWN($B6,10)>=ROUNDDOWN(ListăCursuri[ORA DE ÎNCEPUT],10))*($B6<=ListăCursuri[ORA DE SFÂRȘIT]),ListăCursuri[UNICE]),ListăCursuri[UNICE],0),2),0)","v":0},{"$f":"IFERROR(INDEX(ListăCursuri[],MATCH(SUMPRODUCT((ListăCursuri[ZIUA]=OrarulCursurilor[[#Headers],[MIERCURI]])*(ROUNDDOWN($B6,10)>=ROUNDDOWN(ListăCursuri[ORA DE ÎNCEPUT],10))*($B6<=ListăCursuri[ORA DE SFÂRȘIT]),ListăCursuri[UNICE]),ListăCursuri[UNICE],0),2),0)","v":"MAT-113"},{"$f":"IFERROR(INDEX(ListăCursuri[],MATCH(SUMPRODUCT((ListăCursuri[ZIUA]=OrarulCursurilor[[#Headers],[JOI]])*(ROUNDDOWN($B6,10)>=ROUNDDOWN(ListăCursuri[ORA DE ÎNCEPUT],10))*($B6<=ListăCursuri[ORA DE SFÂRȘIT]),ListăCursuri[UNICE]),ListăCursuri[UNICE],0),2),0)","v":0},{"$f":"IFERROR(INDEX(ListăCursuri[],MATCH(SUMPRODUCT((ListăCursuri[ZIUA]=OrarulCursurilor[[#Headers],[VINERI]])*(ROUNDDOWN($B6,10)>=ROUNDDOWN(ListăCursuri[ORA DE ÎNCEPUT],10))*($B6<=ListăCursuri[ORA DE SFÂRȘIT]),ListăCursuri[UNICE]),ListăCursuri[UNICE],0),2),0)","v":"MAT-113"},{"$f":"IFERROR(INDEX(ListăCursuri[],MATCH(SUMPRODUCT((ListăCursuri[ZIUA]=OrarulCursurilor[[#Headers],[SÂMBĂTĂ]])*(ROUNDDOWN($B6,10)>=ROUNDDOWN(ListăCursuri[ORA DE ÎNCEPUT],10))*($B6<=ListăCursuri[ORA DE SFÂRȘIT]),ListăCursuri[UNICE]),ListăCursuri[UNICE],0),2),0)","v":0}]
[null,"08:45:00",{"$f":"IFERROR(INDEX(ListăCursuri[],MATCH(SUMPRODUCT((ListăCursuri[ZIUA]=OrarulCursurilor[[#Headers],[DUMINICĂ]])*(ROUNDDOWN($B7,10)>=ROUNDDOWN(ListăCursuri[ORA DE ÎNCEPUT],10))*($B7<=ListăCursuri[ORA DE SFÂRȘIT]),ListăCursuri[UNICE]),ListăCursuri[UNICE],0),2),0)","v":0},{"$f":"IFERROR(INDEX(ListăCursuri[],MATCH(SUMPRODUCT((ListăCursuri[ZIUA]=OrarulCursurilor[[#Headers],[LUNI]])*(ROUNDDOWN($B7,10)>=ROUNDDOWN(ListăCursuri[ORA DE ÎNCEPUT],10))*($B7<=ListăCursuri[ORA DE SFÂRȘIT]),ListăCursuri[UNICE]),ListăCursuri[UNICE],0),2),0)","v":"MAT-113"},{"$f":"IFERROR(INDEX(ListăCursuri[],MATCH(SUMPRODUCT((ListăCursuri[ZIUA]=OrarulCursurilor[[#Headers],[MARȚI]])*(ROUNDDOWN($B7,10)>=ROUNDDOWN(ListăCursuri[ORA DE ÎNCEPUT],10))*($B7<=ListăCursuri[ORA DE SFÂRȘIT]),ListăCursuri[UNICE]),ListăCursuri[UNICE],0),2),0)","v":0},{"$f":"IFERROR(INDEX(ListăCursuri[],MATCH(SUMPRODUCT((ListăCursuri[ZIUA]=OrarulCursurilor[[#Headers],[MIERCURI]])*(ROUNDDOWN($B7,10)>=ROUNDDOWN(ListăCursuri[ORA DE ÎNCEPUT],10))*($B7<=ListăCursuri[ORA DE SFÂRȘIT]),ListăCursuri[UNICE]),ListăCursuri[UNICE],0),2),0)","v":"MAT-113"},{"$f":"IFERROR(INDEX(ListăCursuri[],MATCH(SUMPRODUCT((ListăCursuri[ZIUA]=OrarulCursurilor[[#Headers],[JOI]])*(ROUNDDOWN($B7,10)>=ROUNDDOWN(ListăCursuri[ORA DE ÎNCEPUT],10))*($B7<=ListăCursuri[ORA DE SFÂRȘIT]),ListăCursuri[UNICE]),ListăCursuri[UNICE],0),2),0)","v":0},{"$f":"IFERROR(INDEX(ListăCursuri[],MATCH(SUMPRODUCT((ListăCursuri[ZIUA]=OrarulCursurilor[[#Headers],[VINERI]])*(ROUNDDOWN($B7,10)>=ROUNDDOWN(ListăCursuri[ORA DE ÎNCEPUT],10))*($B7<=ListăCursuri[ORA DE SFÂRȘIT]),ListăCursuri[UNICE]),ListăCursuri[UNICE],0),2),0)","v":"MAT-113"},{"$f":"IFERROR(INDEX(ListăCursuri[],MATCH(SUMPRODUCT((ListăCursuri[ZIUA]=OrarulCursurilor[[#Headers],[SÂMBĂTĂ]])*(ROUNDDOWN($B7,10)>=ROUNDDOWN(ListăCursuri[ORA DE ÎNCEPUT],10))*($B7<=ListăCursuri[ORA DE SFÂRȘIT]),ListăCursuri[UNICE]),ListăCursuri[UNICE],0),2),0)","v":0}]
[null,"09:00:00",{"$f":"IFERROR(INDEX(ListăCursuri[],MATCH(SUMPRODUCT((ListăCursuri[ZIUA]=OrarulCursurilor[[#Headers],[DUMINICĂ]])*(ROUNDDOWN($B8,10)>=ROUNDDOWN(ListăCursuri[ORA DE ÎNCEPUT],10))*($B8<=ListăCursuri[ORA DE SFÂRȘIT]),ListăCursuri[UNICE]),ListăCursuri[UNICE],0),2),0)","v":0},{"$f":"IFERROR(INDEX(ListăCursuri[],MATCH(SUMPRODUCT((ListăCursuri[ZIUA]=OrarulCursurilor[[#Headers],[LUNI]])*(ROUNDDOWN($B8,10)>=ROUNDDOWN(ListăCursuri[ORA DE ÎNCEPUT],10))*($B8<=ListăCursuri[ORA DE SFÂRȘIT]),ListăCursuri[UNICE]),ListăCursuri[UNICE],0),2),0)","v":"MAT-113"},{"$f":"IFERROR(INDEX(ListăCursuri[],MATCH(SUMPRODUCT((ListăCursuri[ZIUA]=OrarulCursurilor[[#Headers],[MARȚI]])*(ROUNDDOWN($B8,10)>=ROUNDDOWN(ListăCursuri[ORA DE ÎNCEPUT],10))*($B8<=ListăCursuri[ORA DE SFÂRȘIT]),ListăCursuri[UNICE]),ListăCursuri[UNICE],0),2),0)","v":0},{"$f":"IFERROR(INDEX(ListăCursuri[],MATCH(SUMPRODUCT((ListăCursuri[ZIUA]=OrarulCursurilor[[#Headers],[MIERCURI]])*(ROUNDDOWN($B8,10)>=ROUNDDOWN(ListăCursuri[ORA DE ÎNCEPUT],10))*($B8<=ListăCursuri[ORA DE SFÂRȘIT]),ListăCursuri[UNICE]),ListăCursuri[UNICE],0),2),0)","v":"MAT-113"},{"$f":"IFERROR(INDEX(ListăCursuri[],MATCH(SUMPRODUCT((ListăCursuri[ZIUA]=OrarulCursurilor[[#Headers],[JOI]])*(ROUNDDOWN($B8,10)>=ROUNDDOWN(ListăCursuri[ORA DE ÎNCEPUT],10))*($B8<=ListăCursuri[ORA DE SFÂRȘIT]),ListăCursuri[UNICE]),ListăCursuri[UNICE],0),2),0)","v":0},{"$f":"IFERROR(INDEX(ListăCursuri[],MATCH(SUMPRODUCT((ListăCursuri[ZIUA]=OrarulCursurilor[[#Headers],[VINERI]])*(ROUNDDOWN($B8,10)>=ROUNDDOWN(ListăCursuri[ORA DE ÎNCEPUT],10))*($B8<=ListăCursuri[ORA DE SFÂRȘIT]),ListăCursuri[UNICE]),ListăCursuri[UNICE],0),2),0)","v":"MAT-113"},{"$f":"IFERROR(INDEX(ListăCursuri[],MATCH(SUMPRODUCT((ListăCursuri[ZIUA]=OrarulCursurilor[[#Headers],[SÂMBĂTĂ]])*(ROUNDDOWN($B8,10)>=ROUNDDOWN(ListăCursuri[ORA DE ÎNCEPUT],10))*($B8<=ListăCursuri[ORA DE SFÂRȘIT]),ListăCursuri[UNICE]),ListăCursuri[UNICE],0),2),0)","v":0}]
[null,"09:15:00",{"$f":"IFERROR(INDEX(ListăCursuri[],MATCH(SUMPRODUCT((ListăCursuri[ZIUA]=OrarulCursurilor[[#Headers],[DUMINICĂ]])*(ROUNDDOWN($B9,10)>=ROUNDDOWN(ListăCursuri[ORA DE ÎNCEPUT],10))*($B9<=ListăCursuri[ORA DE SFÂRȘIT]),ListăCursuri[UNICE]),ListăCursuri[UNICE],0),2),0)","v":0},{"$f":"IFERROR(INDEX(ListăCursuri[],MATCH(SUMPRODUCT((ListăCursuri[ZIUA]=OrarulCursurilor[[#Headers],[LUNI]])*(ROUNDDOWN($B9,10)>=ROUNDDOWN(ListăCursuri[ORA DE ÎNCEPUT],10))*($B9<=ListăCursuri[ORA DE SFÂRȘIT]),ListăCursuri[UNICE]),ListăCursuri[UNICE],0),2),0)","v":"MAT-113"},{"$f":"IFERROR(INDEX(ListăCursuri[],MATCH(SUMPRODUCT((ListăCursuri[ZIUA]=OrarulCursurilor[[#Headers],[MARȚI]])*(ROUNDDOWN($B9,10)>=ROUNDDOWN(ListăCursuri[ORA DE ÎNCEPUT],10))*($B9<=ListăCursuri[ORA DE SFÂRȘIT]),ListăCursuri[UNICE]),ListăCursuri[UNICE],0),2),0)","v":0},{"$f":"IFERROR(INDEX(ListăCursuri[],MATCH(SUMPRODUCT((ListăCursuri[ZIUA]=OrarulCursurilor[[#Headers],[MIERCURI]])*(ROUNDDOWN($B9,10)>=ROUNDDOWN(ListăCursuri[ORA DE ÎNCEPUT],10))*($B9<=ListăCursuri[ORA DE SFÂRȘIT]),ListăCursuri[UNICE]),ListăCursuri[UNICE],0),2),0)","v":"MAT-113"},{"$f":"IFERROR(INDEX(ListăCursuri[],MATCH(SUMPRODUCT((ListăCursuri[ZIUA]=OrarulCursurilor[[#Headers],[JOI]])*(ROUNDDOWN($B9,10)>=ROUNDDOWN(ListăCursuri[ORA DE ÎNCEPUT],10))*($B9<=ListăCursuri[ORA DE SFÂRȘIT]),ListăCursuri[UNICE]),ListăCursuri[UNICE],0),2),0)","v":0},{"$f":"IFERROR(INDEX(ListăCursuri[],MATCH(SUMPRODUCT((ListăCursuri[ZIUA]=OrarulCursurilor[[#Headers],[VINERI]])*(ROUNDDOWN($B9,10)>=ROUNDDOWN(ListăCursuri[ORA DE ÎNCEPUT],10))*($B9<=ListăCursuri[ORA DE SFÂRȘIT]),ListăCursuri[UNICE]),ListăCursuri[UNICE],0),2),0)","v":"MAT-113"},{"$f":"IFERROR(INDEX(ListăCursuri[],MATCH(SUMPRODUCT((ListăCursuri[ZIUA]=OrarulCursurilor[[#Headers],[SÂMBĂTĂ]])*(ROUNDDOWN($B9,10)>=ROUNDDOWN(ListăCursuri[ORA DE ÎNCEPUT],10))*($B9<=ListăCursuri[ORA DE SFÂRȘIT]),ListăCursuri[UNICE]),ListăCursuri[UNICE],0),2),0)","v":0}]
[null,"09:30:00",{"$f":"IFERROR(INDEX(ListăCursuri[],MATCH(SUMPRODUCT((ListăCursuri[ZIUA]=OrarulCursurilor[[#Headers],[DUMINICĂ]])*(ROUNDDOWN($B10,10)>=ROUNDDOWN(ListăCursuri[ORA DE ÎNCEPUT],10))*($B10<=ListăCursuri[ORA DE SFÂRȘIT]),ListăCursuri[UNICE]),ListăCursuri[UNICE],0),2),0)","v":0},{"$f":"IFERROR(INDEX(ListăCursuri[],MATCH(SUMPRODUCT((ListăCursuri[ZIUA]=OrarulCursurilor[[#Headers],[LUNI]])*(ROUNDDOWN($B10,10)>=ROUNDDOWN(ListăCursuri[ORA DE ÎNCEPUT],10))*($B10<=ListăCursuri[ORA DE SFÂRȘIT]),ListăCursuri[UNICE]),ListăCursuri[UNICE],0),2),0)","v":0},{"$f":"IFERROR(INDEX(ListăCursuri[],MATCH(SUMPRODUCT((ListăCursuri[ZIUA]=OrarulCursurilor[[#Headers],[MARȚI]])*(ROUNDDOWN($B10,10)>=ROUNDDOWN(ListăCursuri[ORA DE ÎNCEPUT],10))*($B10<=ListăCursuri[ORA DE SFÂRȘIT]),ListăCursuri[UNICE]),ListăCursuri[UNICE],0),2),0)","v":0},{"$f":"IFERROR(INDEX(ListăCursuri[],MATCH(SUMPRODUCT((ListăCursuri[ZIUA]=OrarulCursurilor[[#Headers],[MIERCURI]])*(ROUNDDOWN($B10,10)>=ROUNDDOWN(ListăCursuri[ORA DE ÎNCEPUT],10))*($B10<=ListăCursuri[ORA DE SFÂRȘIT]),ListăCursuri[UNICE]),ListăCursuri[UNICE],0),2),0)","v":0},{"$f":"IFERROR(INDEX(ListăCursuri[],MATCH(SUMPRODUCT((ListăCursuri[ZIUA]=OrarulCursurilor[[#Headers],[JOI]])*(ROUNDDOWN($B10,10)>=ROUNDDOWN(ListăCursuri[ORA DE ÎNCEPUT],10))*($B10<=ListăCursuri[ORA DE SFÂRȘIT]),ListăCursuri[UNICE]),ListăCursuri[UNICE],0),2),0)","v":0},{"$f":"IFERROR(INDEX(ListăCursuri[],MATCH(SUMPRODUCT((ListăCursuri[ZIUA]=OrarulCursurilor[[#Headers],[VINERI]])*(ROUNDDOWN($B10,10)>=ROUNDDOWN(ListăCursuri[ORA DE ÎNCEPUT],10))*($B10<=ListăCursuri[ORA DE SFÂRȘIT]),ListăCursuri[UNICE]),ListăCursuri[UNICE],0),2),0)","v":0},{"$f":"IFERROR(INDEX(ListăCursuri[],MATCH(SUMPRODUCT((ListăCursuri[ZIUA]=OrarulCursurilor[[#Headers],[SÂMBĂTĂ]])*(ROUNDDOWN($B10,10)>=ROUNDDOWN(ListăCursuri[ORA DE ÎNCEPUT],10))*($B10<=ListăCursuri[ORA DE SFÂRȘIT]),ListăCursuri[UNICE]),ListăCursuri[UNICE],0),2),0)","v":0}]
[null,"09:45:00",{"$f":"IFERROR(INDEX(ListăCursuri[],MATCH(SUMPRODUCT((ListăCursuri[ZIUA]=OrarulCursurilor[[#Headers],[DUMINICĂ]])*(ROUNDDOWN($B11,10)>=ROUNDDOWN(ListăCursuri[ORA DE ÎNCEPUT],10))*($B11<=ListăCursuri[ORA DE SFÂRȘIT]),ListăCursuri[UNICE]),ListăCursuri[UNICE],0),2),0)","v":0},{"$f":"IFERROR(INDEX(ListăCursuri[],MATCH(SUMPRODUCT((ListăCursuri[ZIUA]=OrarulCursurilor[[#Headers],[LUNI]])*(ROUNDDOWN($B11,10)>=ROUNDDOWN(ListăCursuri[ORA DE ÎNCEPUT],10))*($B11<=ListăCursuri[ORA DE SFÂRȘIT]),ListăCursuri[UNICE]),ListăCursuri[UNICE],0),2),0)","v":0},{"$f":"IFERROR(INDEX(ListăCursuri[],MATCH(SUMPRODUCT((ListăCursuri[ZIUA]=OrarulCursurilor[[#Headers],[MARȚI]])*(ROUNDDOWN($B11,10)>=ROUNDDOWN(ListăCursuri[ORA DE ÎNCEPUT],10))*($B11<=ListăCursuri[ORA DE SFÂRȘIT]),ListăCursuri[UNICE]),ListăCursuri[UNICE],0),2),0)","v":0},{"$f":"IFERROR(INDEX(ListăCursuri[],MATCH(SUMPRODUCT((ListăCursuri[ZIUA]=OrarulCursurilor[[#Headers],[MIERCURI]])*(ROUNDDOWN($B11,10)>=ROUNDDOWN(ListăCursuri[ORA DE ÎNCEPUT],10))*($B11<=ListăCursuri[ORA DE SFÂRȘIT]),ListăCursuri[UNICE]),ListăCursuri[UNICE],0),2),0)","v":0},{"$f":"IFERROR(INDEX(ListăCursuri[],MATCH(SUMPRODUCT((ListăCursuri[ZIUA]=OrarulCursurilor[[#Headers],[JOI]])*(ROUNDDOWN($B11,10)>=ROUNDDOWN(ListăCursuri[ORA DE ÎNCEPUT],10))*($B11<=ListăCursuri[ORA DE SFÂRȘIT]),ListăCursuri[UNICE]),ListăCursuri[UNICE],0),2),0)","v":0},{"$f":"IFERROR(INDEX(ListăCursuri[],MATCH(SUMPRODUCT((ListăCursuri[ZIUA]=OrarulCursurilor[[#Headers],[VINERI]])*(ROUNDDOWN($B11,10)>=ROUNDDOWN(ListăCursuri[ORA DE ÎNCEPUT],10))*($B11<=ListăCursuri[ORA DE SFÂRȘIT]),ListăCursuri[UNICE]),ListăCursuri[UNICE],0),2),0)","v":0},{"$f":"IFERROR(INDEX(ListăCursuri[],MATCH(SUMPRODUCT((ListăCursuri[ZIUA]=OrarulCursurilor[[#Headers],[SÂMBĂTĂ]])*(ROUNDDOWN($B11,10)>=ROUNDDOWN(ListăCursuri[ORA DE ÎNCEPUT],10))*($B11<=ListăCursuri[ORA DE SFÂRȘIT]),ListăCursuri[UNICE]),ListăCursuri[UNICE],0),2),0)","v":0}]
[null,"10:00:00",{"$f":"IFERROR(INDEX(ListăCursuri[],MATCH(SUMPRODUCT((ListăCursuri[ZIUA]=OrarulCursurilor[[#Headers],[DUMINICĂ]])*(ROUNDDOWN($B12,10)>=ROUNDDOWN(ListăCursuri[ORA DE ÎNCEPUT],10))*($B12<=ListăCursuri[ORA DE SFÂRȘIT]),ListăCursuri[UNICE]),ListăCursuri[UNICE],0),2),0)","v":0},{"$f":"IFERROR(INDEX(ListăCursuri[],MATCH(SUMPRODUCT((ListăCursuri[ZIUA]=OrarulCursurilor[[#Headers],[LUNI]])*(ROUNDDOWN($B12,10)>=ROUNDDOWN(ListăCursuri[ORA DE ÎNCEPUT],10))*($B12<=ListăCursuri[ORA DE SFÂRȘIT]),ListăCursuri[UNICE]),ListăCursuri[UNICE],0),2),0)","v":0},{"$f":"IFERROR(INDEX(ListăCursuri[],MATCH(SUMPRODUCT((ListăCursuri[ZIUA]=OrarulCursurilor[[#Headers],[MARȚI]])*(ROUNDDOWN($B12,10)>=ROUNDDOWN(ListăCursuri[ORA DE ÎNCEPUT],10))*($B12<=ListăCursuri[ORA DE SFÂRȘIT]),ListăCursuri[UNICE]),ListăCursuri[UNICE],0),2),0)","v":0},{"$f":"IFERROR(INDEX(ListăCursuri[],MATCH(SUMPRODUCT((ListăCursuri[ZIUA]=OrarulCursurilor[[#Headers],[MIERCURI]])*(ROUNDDOWN($B12,10)>=ROUNDDOWN(ListăCursuri[ORA DE ÎNCEPUT],10))*($B12<=ListăCursuri[ORA DE SFÂRȘIT]),ListăCursuri[UNICE]),ListăCursuri[UNICE],0),2),0)","v":0},{"$f":"IFERROR(INDEX(ListăCursuri[],MATCH(SUMPRODUCT((ListăCursuri[ZIUA]=OrarulCursurilor[[#Headers],[JOI]])*(ROUNDDOWN($B12,10)>=ROUNDDOWN(ListăCursuri[ORA DE ÎNCEPUT],10))*($B12<=ListăCursuri[ORA DE SFÂRȘIT]),ListăCursuri[UNICE]),ListăCursuri[UNICE],0),2),0)","v":0},{"$f":"IFERROR(INDEX(ListăCursuri[],MATCH(SUMPRODUCT((ListăCursuri[ZIUA]=OrarulCursurilor[[#Headers],[VINERI]])*(ROUNDDOWN($B12,10)>=ROUNDDOWN(ListăCursuri[ORA DE ÎNCEPUT],10))*($B12<=ListăCursuri[ORA DE SFÂRȘIT]),ListăCursuri[UNICE]),ListăCursuri[UNICE],0),2),0)","v":0},{"$f":"IFERROR(INDEX(ListăCursuri[],MATCH(SUMPRODUCT((ListăCursuri[ZIUA]=OrarulCursurilor[[#Headers],[SÂMBĂTĂ]])*(ROUNDDOWN($B12,10)>=ROUNDDOWN(ListăCursuri[ORA DE ÎNCEPUT],10))*($B12<=ListăCursuri[ORA DE SFÂRȘIT]),ListăCursuri[UNICE]),ListăCursuri[UNICE],0),2),0)","v":0}]
[null,"10:15:00",{"$f":"IFERROR(INDEX(ListăCursuri[],MATCH(SUMPRODUCT((ListăCursuri[ZIUA]=OrarulCursurilor[[#Headers],[DUMINICĂ]])*(ROUNDDOWN($B13,10)>=ROUNDDOWN(ListăCursuri[ORA DE ÎNCEPUT],10))*($B13<=ListăCursuri[ORA DE SFÂRȘIT]),ListăCursuri[UNICE]),ListăCursuri[UNICE],0),2),0)","v":0},{"$f":"IFERROR(INDEX(ListăCursuri[],MATCH(SUMPRODUCT((ListăCursuri[ZIUA]=OrarulCursurilor[[#Headers],[LUNI]])*(ROUNDDOWN($B13,10)>=ROUNDDOWN(ListăCursuri[ORA DE ÎNCEPUT],10))*($B13<=ListăCursuri[ORA DE SFÂRȘIT]),ListăCursuri[UNICE]),ListăCursuri[UNICE],0),2),0)","v":0},{"$f":"IFERROR(INDEX(ListăCursuri[],MATCH(SUMPRODUCT((ListăCursuri[ZIUA]=OrarulCursurilor[[#Headers],[MARȚI]])*(ROUNDDOWN($B13,10)>=ROUNDDOWN(ListăCursuri[ORA DE ÎNCEPUT],10))*($B13<=ListăCursuri[ORA DE SFÂRȘIT]),ListăCursuri[UNICE]),ListăCursuri[UNICE],0),2),0)","v":0},{"$f":"IFERROR(INDEX(ListăCursuri[],MATCH(SUMPRODUCT((ListăCursuri[ZIUA]=OrarulCursurilor[[#Headers],[MIERCURI]])*(ROUNDDOWN($B13,10)>=ROUNDDOWN(ListăCursuri[ORA DE ÎNCEPUT],10))*($B13<=ListăCursuri[ORA DE SFÂRȘIT]),ListăCursuri[UNICE]),ListăCursuri[UNICE],0),2),0)","v":0},{"$f":"IFERROR(INDEX(ListăCursuri[],MATCH(SUMPRODUCT((ListăCursuri[ZIUA]=OrarulCursurilor[[#Headers],[JOI]])*(ROUNDDOWN($B13,10)>=ROUNDDOWN(ListăCursuri[ORA DE ÎNCEPUT],10))*($B13<=ListăCursuri[ORA DE SFÂRȘIT]),ListăCursuri[UNICE]),ListăCursuri[UNICE],0),2),0)","v":0},{"$f":"IFERROR(INDEX(ListăCursuri[],MATCH(SUMPRODUCT((ListăCursuri[ZIUA]=OrarulCursurilor[[#Headers],[VINERI]])*(ROUNDDOWN($B13,10)>=ROUNDDOWN(ListăCursuri[ORA DE ÎNCEPUT],10))*($B13<=ListăCursuri[ORA DE SFÂRȘIT]),ListăCursuri[UNICE]),ListăCursuri[UNICE],0),2),0)","v":0},{"$f":"IFERROR(INDEX(ListăCursuri[],MATCH(SUMPRODUCT((ListăCursuri[ZIUA]=OrarulCursurilor[[#Headers],[SÂMBĂTĂ]])*(ROUNDDOWN($B13,10)>=ROUNDDOWN(ListăCursuri[ORA DE ÎNCEPUT],10))*($B13<=ListăCursuri[ORA DE SFÂRȘIT]),ListăCursuri[UNICE]),ListăCursuri[UNICE],0),2),0)","v":0}]
[null,"10:30:00",{"$f":"IFERROR(INDEX(ListăCursuri[],MATCH(SUMPRODUCT((ListăCursuri[ZIUA]=OrarulCursurilor[[#Headers],[DUMINICĂ]])*(ROUNDDOWN($B14,10)>=ROUNDDOWN(ListăCursuri[ORA DE ÎNCEPUT],10))*($B14<=ListăCursuri[ORA DE SFÂRȘIT]),ListăCursuri[UNICE]),ListăCursuri[UNICE],0),2),0)","v":0},{"$f":"IFERROR(INDEX(ListăCursuri[],MATCH(SUMPRODUCT((ListăCursuri[ZIUA]=OrarulCursurilor[[#Headers],[LUNI]])*(ROUNDDOWN($B14,10)>=ROUNDDOWN(ListăCursuri[ORA DE ÎNCEPUT],10))*($B14<=ListăCursuri[ORA DE SFÂRȘIT]),ListăCursuri[UNICE]),ListăCursuri[UNICE],0),2),0)","v":0},{"$f":"IFERROR(INDEX(ListăCursuri[],MATCH(SUMPRODUCT((ListăCursuri[ZIUA]=OrarulCursurilor[[#Headers],[MARȚI]])*(ROUNDDOWN($B14,10)>=ROUNDDOWN(ListăCursuri[ORA DE ÎNCEPUT],10))*($B14<=ListăCursuri[ORA DE SFÂRȘIT]),ListăCursuri[UNICE]),ListăCursuri[UNICE],0),2),0)","v":0},{"$f":"IFERROR(INDEX(ListăCursuri[],MATCH(SUMPRODUCT((ListăCursuri[ZIUA]=OrarulCursurilor[[#Headers],[MIERCURI]])*(ROUNDDOWN($B14,10)>=ROUNDDOWN(ListăCursuri[ORA DE ÎNCEPUT],10))*($B14<=ListăCursuri[ORA DE SFÂRȘIT]),ListăCursuri[UNICE]),ListăCursuri[UNICE],0),2),0)","v":0},{"$f":"IFERROR(INDEX(ListăCursuri[],MATCH(SUMPRODUCT((ListăCursuri[ZIUA]=OrarulCursurilor[[#Headers],[JOI]])*(ROUNDDOWN($B14,10)>=ROUNDDOWN(ListăCursuri[ORA DE ÎNCEPUT],10))*($B14<=ListăCursuri[ORA DE SFÂRȘIT]),ListăCursuri[UNICE]),ListăCursuri[UNICE],0),2),0)","v":0},{"$f":"IFERROR(INDEX(ListăCursuri[],MATCH(SUMPRODUCT((ListăCursuri[ZIUA]=OrarulCursurilor[[#Headers],[VINERI]])*(ROUNDDOWN($B14,10)>=ROUNDDOWN(ListăCursuri[ORA DE ÎNCEPUT],10))*($B14<=ListăCursuri[ORA DE SFÂRȘIT]),ListăCursuri[UNICE]),ListăCursuri[UNICE],0),2),0)","v":0},{"$f":"IFERROR(INDEX(ListăCursuri[],MATCH(SUMPRODUCT((ListăCursuri[ZIUA]=OrarulCursurilor[[#Headers],[SÂMBĂTĂ]])*(ROUNDDOWN($B14,10)>=ROUNDDOWN(ListăCursuri[ORA DE ÎNCEPUT],10))*($B14<=ListăCursuri[ORA DE SFÂRȘIT]),ListăCursuri[UNICE]),ListăCursuri[UNICE],0),2),0)","v":0}]
[null,"10:45:00",{"$f":"IFERROR(INDEX(ListăCursuri[],MATCH(SUMPRODUCT((ListăCursuri[ZIUA]=OrarulCursurilor[[#Headers],[DUMINICĂ]])*(ROUNDDOWN($B15,10)>=ROUNDDOWN(ListăCursuri[ORA DE ÎNCEPUT],10))*($B15<=ListăCursuri[ORA DE SFÂRȘIT]),ListăCursuri[UNICE]),ListăCursuri[UNICE],0),2),0)","v":0},{"$f":"IFERROR(INDEX(ListăCursuri[],MATCH(SUMPRODUCT((ListăCursuri[ZIUA]=OrarulCursurilor[[#Headers],[LUNI]])*(ROUNDDOWN($B15,10)>=ROUNDDOWN(ListăCursuri[ORA DE ÎNCEPUT],10))*($B15<=ListăCursuri[ORA DE SFÂRȘIT]),ListăCursuri[UNICE]),ListăCursuri[UNICE],0),2),0)","v":0},{"$f":"IFERROR(INDEX(ListăCursuri[],MATCH(SUMPRODUCT((ListăCursuri[ZIUA]=OrarulCursurilor[[#Headers],[MARȚI]])*(ROUNDDOWN($B15,10)>=ROUNDDOWN(ListăCursuri[ORA DE ÎNCEPUT],10))*($B15<=ListăCursuri[ORA DE SFÂRȘIT]),ListăCursuri[UNICE]),ListăCursuri[UNICE],0),2),0)","v":0},{"$f":"IFERROR(INDEX(ListăCursuri[],MATCH(SUMPRODUCT((ListăCursuri[ZIUA]=OrarulCursurilor[[#Headers],[MIERCURI]])*(ROUNDDOWN($B15,10)>=ROUNDDOWN(ListăCursuri[ORA DE ÎNCEPUT],10))*($B15<=ListăCursuri[ORA DE SFÂRȘIT]),ListăCursuri[UNICE]),ListăCursuri[UNICE],0),2),0)","v":0},{"$f":"IFERROR(INDEX(ListăCursuri[],MATCH(SUMPRODUCT((ListăCursuri[ZIUA]=OrarulCursurilor[[#Headers],[JOI]])*(ROUNDDOWN($B15,10)>=ROUNDDOWN(ListăCursuri[ORA DE ÎNCEPUT],10))*($B15<=ListăCursuri[ORA DE SFÂRȘIT]),ListăCursuri[UNICE]),ListăCursuri[UNICE],0),2),0)","v":0},{"$f":"IFERROR(INDEX(ListăCursuri[],MATCH(SUMPRODUCT((ListăCursuri[ZIUA]=OrarulCursurilor[[#Headers],[VINERI]])*(ROUNDDOWN($B15,10)>=ROUNDDOWN(ListăCursuri[ORA DE ÎNCEPUT],10))*($B15<=ListăCursuri[ORA DE SFÂRȘIT]),ListăCursuri[UNICE]),ListăCursuri[UNICE],0),2),0)","v":0},{"$f":"IFERROR(INDEX(ListăCursuri[],MATCH(SUMPRODUCT((ListăCursuri[ZIUA]=OrarulCursurilor[[#Headers],[SÂMBĂTĂ]])*(ROUNDDOWN($B15,10)>=ROUNDDOWN(ListăCursuri[ORA DE ÎNCEPUT],10))*($B15<=ListăCursuri[ORA DE SFÂRȘIT]),ListăCursuri[UNICE]),ListăCursuri[UNICE],0),2),0)","v":0}]
[null,"11:00:00",{"$f":"IFERROR(INDEX(ListăCursuri[],MATCH(SUMPRODUCT((ListăCursuri[ZIUA]=OrarulCursurilor[[#Headers],[DUMINICĂ]])*(ROUNDDOWN($B16,10)>=ROUNDDOWN(ListăCursuri[ORA DE ÎNCEPUT],10))*($B16<=ListăCursuri[ORA DE SFÂRȘIT]),ListăCursuri[UNICE]),ListăCursuri[UNICE],0),2),0)","v":0},{"$f":"IFERROR(INDEX(ListăCursuri[],MATCH(SUMPRODUCT((ListăCursuri[ZIUA]=OrarulCursurilor[[#Headers],[LUNI]])*(ROUNDDOWN($B16,10)>=ROUNDDOWN(ListăCursuri[ORA DE ÎNCEPUT],10))*($B16<=ListăCursuri[ORA DE SFÂRȘIT]),ListăCursuri[UNICE]),ListăCursuri[UNICE],0),2),0)","v":0},{"$f":"IFERROR(INDEX(ListăCursuri[],MATCH(SUMPRODUCT((ListăCursuri[ZIUA]=OrarulCursurilor[[#Headers],[MARȚI]])*(ROUNDDOWN($B16,10)>=ROUNDDOWN(ListăCursuri[ORA DE ÎNCEPUT],10))*($B16<=ListăCursuri[ORA DE SFÂRȘIT]),ListăCursuri[UNICE]),ListăCursuri[UNICE],0),2),0)","v":"SAN-295"},{"$f":"IFERROR(INDEX(ListăCursuri[],MATCH(SUMPRODUCT((ListăCursuri[ZIUA]=OrarulCursurilor[[#Headers],[MIERCURI]])*(ROUNDDOWN($B16,10)>=ROUNDDOWN(ListăCursuri[ORA DE ÎNCEPUT],10))*($B16<=ListăCursuri[ORA DE SFÂRȘIT]),ListăCursuri[UNICE]),ListăCursuri[UNICE],0),2),0)","v":0},{"$f":"IFERROR(INDEX(ListăCursuri[],MATCH(SUMPRODUCT((ListăCursuri[ZIUA]=OrarulCursurilor[[#Headers],[JOI]])*(ROUNDDOWN($B16,10)>=ROUNDDOWN(ListăCursuri[ORA DE ÎNCEPUT],10))*($B16<=ListăCursuri[ORA DE SFÂRȘIT]),ListăCursuri[UNICE]),ListăCursuri[UNICE],0),2),0)","v":"SAN-295"},{"$f":"IFERROR(INDEX(ListăCursuri[],MATCH(SUMPRODUCT((ListăCursuri[ZIUA]=OrarulCursurilor[[#Headers],[VINERI]])*(ROUNDDOWN($B16,10)>=ROUNDDOWN(ListăCursuri[ORA DE ÎNCEPUT],10))*($B16<=ListăCursuri[ORA DE SFÂRȘIT]),ListăCursuri[UNICE]),ListăCursuri[UNICE],0),2),0)","v":0},{"$f":"IFERROR(INDEX(ListăCursuri[],MATCH(SUMPRODUCT((ListăCursuri[ZIUA]=OrarulCursurilor[[#Headers],[SÂMBĂTĂ]])*(ROUNDDOWN($B16,10)>=ROUNDDOWN(ListăCursuri[ORA DE ÎNCEPUT],10))*($B16<=ListăCursuri[ORA DE SFÂRȘIT]),ListăCursuri[UNICE]),ListăCursuri[UNICE],0),2),0)","v":0}]
[null,"11:15:00",{"$f":"IFERROR(INDEX(ListăCursuri[],MATCH(SUMPRODUCT((ListăCursuri[ZIUA]=OrarulCursurilor[[#Headers],[DUMINICĂ]])*(ROUNDDOWN($B17,10)>=ROUNDDOWN(ListăCursuri[ORA DE ÎNCEPUT],10))*($B17<=ListăCursuri[ORA DE SFÂRȘIT]),ListăCursuri[UNICE]),ListăCursuri[UNICE],0),2),0)","v":0},{"$f":"IFERROR(INDEX(ListăCursuri[],MATCH(SUMPRODUCT((ListăCursuri[ZIUA]=OrarulCursurilor[[#Headers],[LUNI]])*(ROUNDDOWN($B17,10)>=ROUNDDOWN(ListăCursuri[ORA DE ÎNCEPUT],10))*($B17<=ListăCursuri[ORA DE SFÂRȘIT]),ListăCursuri[UNICE]),ListăCursuri[UNICE],0),2),0)","v":0},{"$f":"IFERROR(INDEX(ListăCursuri[],MATCH(SUMPRODUCT((ListăCursuri[ZIUA]=OrarulCursurilor[[#Headers],[MARȚI]])*(ROUNDDOWN($B17,10)>=ROUNDDOWN(ListăCursuri[ORA DE ÎNCEPUT],10))*($B17<=ListăCursuri[ORA DE SFÂRȘIT]),ListăCursuri[UNICE]),ListăCursuri[UNICE],0),2),0)","v":"SAN-295"},{"$f":"IFERROR(INDEX(ListăCursuri[],MATCH(SUMPRODUCT((ListăCursuri[ZIUA]=OrarulCursurilor[[#Headers],[MIERCURI]])*(ROUNDDOWN($B17,10)>=ROUNDDOWN(ListăCursuri[ORA DE ÎNCEPUT],10))*($B17<=ListăCursuri[ORA DE SFÂRȘIT]),ListăCursuri[UNICE]),ListăCursuri[UNICE],0),2),0)","v":0},{"$f":"IFERROR(INDEX(ListăCursuri[],MATCH(SUMPRODUCT((ListăCursuri[ZIUA]=OrarulCursurilor[[#Headers],[JOI]])*(ROUNDDOWN($B17,10)>=ROUNDDOWN(ListăCursuri[ORA DE ÎNCEPUT],10))*($B17<=ListăCursuri[ORA DE SFÂRȘIT]),ListăCursuri[UNICE]),ListăCursuri[UNICE],0),2),0)","v":"SAN-295"},{"$f":"IFERROR(INDEX(ListăCursuri[],MATCH(SUMPRODUCT((ListăCursuri[ZIUA]=OrarulCursurilor[[#Headers],[VINERI]])*(ROUNDDOWN($B17,10)>=ROUNDDOWN(ListăCursuri[ORA DE ÎNCEPUT],10))*($B17<=ListăCursuri[ORA DE SFÂRȘIT]),ListăCursuri[UNICE]),ListăCursuri[UNICE],0),2),0)","v":0},{"$f":"IFERROR(INDEX(ListăCursuri[],MATCH(SUMPRODUCT((ListăCursuri[ZIUA]=OrarulCursurilor[[#Headers],[SÂMBĂTĂ]])*(ROUNDDOWN($B17,10)>=ROUNDDOWN(ListăCursuri[ORA DE ÎNCEPUT],10))*($B17<=ListăCursuri[ORA DE SFÂRȘIT]),ListăCursuri[UNICE]),ListăCursuri[UNICE],0),2),0)","v":0}]
[null,"11:30:00",{"$f":"IFERROR(INDEX(ListăCursuri[],MATCH(SUMPRODUCT((ListăCursuri[ZIUA]=OrarulCursurilor[[#Headers],[DUMINICĂ]])*(ROUNDDOWN($B18,10)>=ROUNDDOWN(ListăCursuri[ORA DE ÎNCEPUT],10))*($B18<=ListăCursuri[ORA DE SFÂRȘIT]),ListăCursuri[UNICE]),ListăCursuri[UNICE],0),2),0)","v":0},{"$f":"IFERROR(INDEX(ListăCursuri[],MATCH(SUMPRODUCT((ListăCursuri[ZIUA]=OrarulCursurilor[[#Headers],[LUNI]])*(ROUNDDOWN($B18,10)>=ROUNDDOWN(ListăCursuri[ORA DE ÎNCEPUT],10))*($B18<=ListăCursuri[ORA DE SFÂRȘIT]),ListăCursuri[UNICE]),ListăCursuri[UNICE],0),2),0)","v":0},{"$f":"IFERROR(INDEX(ListăCursuri[],MATCH(SUMPRODUCT((ListăCursuri[ZIUA]=OrarulCursurilor[[#Headers],[MARȚI]])*(ROUNDDOWN($B18,10)>=ROUNDDOWN(ListăCursuri[ORA DE ÎNCEPUT],10))*($B18<=ListăCursuri[ORA DE SFÂRȘIT]),ListăCursuri[UNICE]),ListăCursuri[UNICE],0),2),0)","v":"SAN-295"},{"$f":"IFERROR(INDEX(ListăCursuri[],MATCH(SUMPRODUCT((ListăCursuri[ZIUA]=OrarulCursurilor[[#Headers],[MIERCURI]])*(ROUNDDOWN($B18,10)>=ROUNDDOWN(ListăCursuri[ORA DE ÎNCEPUT],10))*($B18<=ListăCursuri[ORA DE SFÂRȘIT]),ListăCursuri[UNICE]),ListăCursuri[UNICE],0),2),0)","v":0},{"$f":"IFERROR(INDEX(ListăCursuri[],MATCH(SUMPRODUCT((ListăCursuri[ZIUA]=OrarulCursurilor[[#Headers],[JOI]])*(ROUNDDOWN($B18,10)>=ROUNDDOWN(ListăCursuri[ORA DE ÎNCEPUT],10))*($B18<=ListăCursuri[ORA DE SFÂRȘIT]),ListăCursuri[UNICE]),ListăCursuri[UNICE],0),2),0)","v":"SAN-295"},{"$f":"IFERROR(INDEX(ListăCursuri[],MATCH(SUMPRODUCT((ListăCursuri[ZIUA]=OrarulCursurilor[[#Headers],[VINERI]])*(ROUNDDOWN($B18,10)>=ROUNDDOWN(ListăCursuri[ORA DE ÎNCEPUT],10))*($B18<=ListăCursuri[ORA DE SFÂRȘIT]),ListăCursuri[UNICE]),ListăCursuri[UNICE],0),2),0)","v":0},{"$f":"IFERROR(INDEX(ListăCursuri[],MATCH(SUMPRODUCT((ListăCursuri[ZIUA]=OrarulCursurilor[[#Headers],[SÂMBĂTĂ]])*(ROUNDDOWN($B18,10)>=ROUNDDOWN(ListăCursuri[ORA DE ÎNCEPUT],10))*($B18<=ListăCursuri[ORA DE SFÂRȘIT]),ListăCursuri[UNICE]),ListăCursuri[UNICE],0),2),0)","v":0}]
[null,"11:45:00",{"$f":"IFERROR(INDEX(ListăCursuri[],MATCH(SUMPRODUCT((ListăCursuri[ZIUA]=OrarulCursurilor[[#Headers],[DUMINICĂ]])*(ROUNDDOWN($B19,10)>=ROUNDDOWN(ListăCursuri[ORA DE ÎNCEPUT],10))*($B19<=ListăCursuri[ORA DE SFÂRȘIT]),ListăCursuri[UNICE]),ListăCursuri[UNICE],0),2),0)","v":0},{"$f":"IFERROR(INDEX(ListăCursuri[],MATCH(SUMPRODUCT((ListăCursuri[ZIUA]=OrarulCursurilor[[#Headers],[LUNI]])*(ROUNDDOWN($B19,10)>=ROUNDDOWN(ListăCursuri[ORA DE ÎNCEPUT],10))*($B19<=ListăCursuri[ORA DE SFÂRȘIT]),ListăCursuri[UNICE]),ListăCursuri[UNICE],0),2),0)","v":0},{"$f":"IFERROR(INDEX(ListăCursuri[],MATCH(SUMPRODUCT((ListăCursuri[ZIUA]=OrarulCursurilor[[#Headers],[MARȚI]])*(ROUNDDOWN($B19,10)>=ROUNDDOWN(ListăCursuri[ORA DE ÎNCEPUT],10))*($B19<=ListăCursuri[ORA DE SFÂRȘIT]),ListăCursuri[UNICE]),ListăCursuri[UNICE],0),2),0)","v":"SAN-295"},{"$f":"IFERROR(INDEX(ListăCursuri[],MATCH(SUMPRODUCT((ListăCursuri[ZIUA]=OrarulCursurilor[[#Headers],[MIERCURI]])*(ROUNDDOWN($B19,10)>=ROUNDDOWN(ListăCursuri[ORA DE ÎNCEPUT],10))*($B19<=ListăCursuri[ORA DE SFÂRȘIT]),ListăCursuri[UNICE]),ListăCursuri[UNICE],0),2),0)","v":0},{"$f":"IFERROR(INDEX(ListăCursuri[],MATCH(SUMPRODUCT((ListăCursuri[ZIUA]=OrarulCursurilor[[#Headers],[JOI]])*(ROUNDDOWN($B19,10)>=ROUNDDOWN(ListăCursuri[ORA DE ÎNCEPUT],10))*($B19<=ListăCursuri[ORA DE SFÂRȘIT]),ListăCursuri[UNICE]),ListăCursuri[UNICE],0),2),0)","v":"SAN-295"},{"$f":"IFERROR(INDEX(ListăCursuri[],MATCH(SUMPRODUCT((ListăCursuri[ZIUA]=OrarulCursurilor[[#Headers],[VINERI]])*(ROUNDDOWN($B19,10)>=ROUNDDOWN(ListăCursuri[ORA DE ÎNCEPUT],10))*($B19<=ListăCursuri[ORA DE SFÂRȘIT]),ListăCursuri[UNICE]),ListăCursuri[UNICE],0),2),0)","v":0},{"$f":"IFERROR(INDEX(ListăCursuri[],MATCH(SUMPRODUCT((ListăCursuri[ZIUA]=OrarulCursurilor[[#Headers],[SÂMBĂTĂ]])*(ROUNDDOWN($B19,10)>=ROUNDDOWN(ListăCursuri[ORA DE ÎNCEPUT],10))*($B19<=ListăCursuri[ORA DE SFÂRȘIT]),ListăCursuri[UNICE]),ListăCursuri[UNICE],0),2),0)","v":0}]
[null,"12:00:00",{"$f":"IFERROR(INDEX(ListăCursuri[],MATCH(SUMPRODUCT((ListăCursuri[ZIUA]=OrarulCursurilor[[#Headers],[DUMINICĂ]])*(ROUNDDOWN($B20,10)>=ROUNDDOWN(ListăCursuri[ORA DE ÎNCEPUT],10))*($B20<=ListăCursuri[ORA DE SFÂRȘIT]),ListăCursuri[UNICE]),ListăCursuri[UNICE],0),2),0)","v":0},{"$f":"IFERROR(INDEX(ListăCursuri[],MATCH(SUMPRODUCT((ListăCursuri[ZIUA]=OrarulCursurilor[[#Headers],[LUNI]])*(ROUNDDOWN($B20,10)>=ROUNDDOWN(ListăCursuri[ORA DE ÎNCEPUT],10))*($B20<=ListăCursuri[ORA DE SFÂRȘIT]),ListăCursuri[UNICE]),ListăCursuri[UNICE],0),2),0)","v":0},{"$f":"IFERROR(INDEX(ListăCursuri[],MATCH(SUMPRODUCT((ListăCursuri[ZIUA]=OrarulCursurilor[[#Headers],[MARȚI]])*(ROUNDDOWN($B20,10)>=ROUNDDOWN(ListăCursuri[ORA DE ÎNCEPUT],10))*($B20<=ListăCursuri[ORA DE SFÂRȘIT]),ListăCursuri[UNICE]),ListăCursuri[UNICE],0),2),0)","v":"SAN-295"},{"$f":"IFERROR(INDEX(ListăCursuri[],MATCH(SUMPRODUCT((ListăCursuri[ZIUA]=OrarulCursurilor[[#Headers],[MIERCURI]])*(ROUNDDOWN($B20,10)>=ROUNDDOWN(ListăCursuri[ORA DE ÎNCEPUT],10))*($B20<=ListăCursuri[ORA DE SFÂRȘIT]),ListăCursuri[UNICE]),ListăCursuri[UNICE],0),2),0)","v":0},{"$f":"IFERROR(INDEX(ListăCursuri[],MATCH(SUMPRODUCT((ListăCursuri[ZIUA]=OrarulCursurilor[[#Headers],[JOI]])*(ROUNDDOWN($B20,10)>=ROUNDDOWN(ListăCursuri[ORA DE ÎNCEPUT],10))*($B20<=ListăCursuri[ORA DE SFÂRȘIT]),ListăCursuri[UNICE]),ListăCursuri[UNICE],0),2),0)","v":"SAN-295"},{"$f":"IFERROR(INDEX(ListăCursuri[],MATCH(SUMPRODUCT((ListăCursuri[ZIUA]=OrarulCursurilor[[#Headers],[VINERI]])*(ROUNDDOWN($B20,10)>=ROUNDDOWN(ListăCursuri[ORA DE ÎNCEPUT],10))*($B20<=ListăCursuri[ORA DE SFÂRȘIT]),ListăCursuri[UNICE]),ListăCursuri[UNICE],0),2),0)","v":0},{"$f":"IFERROR(INDEX(ListăCursuri[],MATCH(SUMPRODUCT((ListăCursuri[ZIUA]=OrarulCursurilor[[#Headers],[SÂMBĂTĂ]])*(ROUNDDOWN($B20,10)>=ROUNDDOWN(ListăCursuri[ORA DE ÎNCEPUT],10))*($B20<=ListăCursuri[ORA DE SFÂRȘIT]),ListăCursuri[UNICE]),ListăCursuri[UNICE],0),2),0)","v":0}]
[null,"12:15:00",{"$f":"IFERROR(INDEX(ListăCursuri[],MATCH(SUMPRODUCT((ListăCursuri[ZIUA]=OrarulCursurilor[[#Headers],[DUMINICĂ]])*(ROUNDDOWN($B21,10)>=ROUNDDOWN(ListăCursuri[ORA DE ÎNCEPUT],10))*($B21<=ListăCursuri[ORA DE SFÂRȘIT]),ListăCursuri[UNICE]),ListăCursuri[UNICE],0),2),0)","v":0},{"$f":"IFERROR(INDEX(ListăCursuri[],MATCH(SUMPRODUCT((ListăCursuri[ZIUA]=OrarulCursurilor[[#Headers],[LUNI]])*(ROUNDDOWN($B21,10)>=ROUNDDOWN(ListăCursuri[ORA DE ÎNCEPUT],10))*($B21<=ListăCursuri[ORA DE SFÂRȘIT]),ListăCursuri[UNICE]),ListăCursuri[UNICE],0),2),0)","v":0},{"$f":"IFERROR(INDEX(ListăCursuri[],MATCH(SUMPRODUCT((ListăCursuri[ZIUA]=OrarulCursurilor[[#Headers],[MARȚI]])*(ROUNDDOWN($B21,10)>=ROUNDDOWN(ListăCursuri[ORA DE ÎNCEPUT],10))*($B21<=ListăCursuri[ORA DE SFÂRȘIT]),ListăCursuri[UNICE]),ListăCursuri[UNICE],0),2),0)","v":0},{"$f":"IFERROR(INDEX(ListăCursuri[],MATCH(SUMPRODUCT((ListăCursuri[ZIUA]=OrarulCursurilor[[#Headers],[MIERCURI]])*(ROUNDDOWN($B21,10)>=ROUNDDOWN(ListăCursuri[ORA DE ÎNCEPUT],10))*($B21<=ListăCursuri[ORA DE SFÂRȘIT]),ListăCursuri[UNICE]),ListăCursuri[UNICE],0),2),0)","v":0},{"$f":"IFERROR(INDEX(ListăCursuri[],MATCH(SUMPRODUCT((ListăCursuri[ZIUA]=OrarulCursurilor[[#Headers],[JOI]])*(ROUNDDOWN($B21,10)>=ROUNDDOWN(ListăCursuri[ORA DE ÎNCEPUT],10))*($B21<=ListăCursuri[ORA DE SFÂRȘIT]),ListăCursuri[UNICE]),ListăCursuri[UNICE],0),2),0)","v":0},{"$f":"IFERROR(INDEX(ListăCursuri[],MATCH(SUMPRODUCT((ListăCursuri[ZIUA]=OrarulCursurilor[[#Headers],[VINERI]])*(ROUNDDOWN($B21,10)>=ROUNDDOWN(ListăCursuri[ORA DE ÎNCEPUT],10))*($B21<=ListăCursuri[ORA DE SFÂRȘIT]),ListăCursuri[UNICE]),ListăCursuri[UNICE],0),2),0)","v":0},{"$f":"IFERROR(INDEX(ListăCursuri[],MATCH(SUMPRODUCT((ListăCursuri[ZIUA]=OrarulCursurilor[[#Headers],[SÂMBĂTĂ]])*(ROUNDDOWN($B21,10)>=ROUNDDOWN(ListăCursuri[ORA DE ÎNCEPUT],10))*($B21<=ListăCursuri[ORA DE SFÂRȘIT]),ListăCursuri[UNICE]),ListăCursuri[UNICE],0),2),0)","v":0}]
[null,"12:30:00",{"$f":"IFERROR(INDEX(ListăCursuri[],MATCH(SUMPRODUCT((ListăCursuri[ZIUA]=OrarulCursurilor[[#Headers],[DUMINICĂ]])*(ROUNDDOWN($B22,10)>=ROUNDDOWN(ListăCursuri[ORA DE ÎNCEPUT],10))*($B22<=ListăCursuri[ORA DE SFÂRȘIT]),ListăCursuri[UNICE]),ListăCursuri[UNICE],0),2),0)","v":0},{"$f":"IFERROR(INDEX(ListăCursuri[],MATCH(SUMPRODUCT((ListăCursuri[ZIUA]=OrarulCursurilor[[#Headers],[LUNI]])*(ROUNDDOWN($B22,10)>=ROUNDDOWN(ListăCursuri[ORA DE ÎNCEPUT],10))*($B22<=ListăCursuri[ORA DE SFÂRȘIT]),ListăCursuri[UNICE]),ListăCursuri[UNICE],0),2),0)","v":0},{"$f":"IFERROR(INDEX(ListăCursuri[],MATCH(SUMPRODUCT((ListăCursuri[ZIUA]=OrarulCursurilor[[#Headers],[MARȚI]])*(ROUNDDOWN($B22,10)>=ROUNDDOWN(ListăCursuri[ORA DE ÎNCEPUT],10))*($B22<=ListăCursuri[ORA DE SFÂRȘIT]),ListăCursuri[UNICE]),ListăCursuri[UNICE],0),2),0)","v":0},{"$f":"IFERROR(INDEX(ListăCursuri[],MATCH(SUMPRODUCT((ListăCursuri[ZIUA]=OrarulCursurilor[[#Headers],[MIERCURI]])*(ROUNDDOWN($B22,10)>=ROUNDDOWN(ListăCursuri[ORA DE ÎNCEPUT],10))*($B22<=ListăCursuri[ORA DE SFÂRȘIT]),ListăCursuri[UNICE]),ListăCursuri[UNICE],0),2),0)","v":0},{"$f":"IFERROR(INDEX(ListăCursuri[],MATCH(SUMPRODUCT((ListăCursuri[ZIUA]=OrarulCursurilor[[#Headers],[JOI]])*(ROUNDDOWN($B22,10)>=ROUNDDOWN(ListăCursuri[ORA DE ÎNCEPUT],10))*($B22<=ListăCursuri[ORA DE SFÂRȘIT]),ListăCursuri[UNICE]),ListăCursuri[UNICE],0),2),0)","v":0},{"$f":"IFERROR(INDEX(ListăCursuri[],MATCH(SUMPRODUCT((ListăCursuri[ZIUA]=OrarulCursurilor[[#Headers],[VINERI]])*(ROUNDDOWN($B22,10)>=ROUNDDOWN(ListăCursuri[ORA DE ÎNCEPUT],10))*($B22<=ListăCursuri[ORA DE SFÂRȘIT]),ListăCursuri[UNICE]),ListăCursuri[UNICE],0),2),0)","v":0},{"$f":"IFERROR(INDEX(ListăCursuri[],MATCH(SUMPRODUCT((ListăCursuri[ZIUA]=OrarulCursurilor[[#Headers],[SÂMBĂTĂ]])*(ROUNDDOWN($B22,10)>=ROUNDDOWN(ListăCursuri[ORA DE ÎNCEPUT],10))*($B22<=ListăCursuri[ORA DE SFÂRȘIT]),ListăCursuri[UNICE]),ListăCursuri[UNICE],0),2),0)","v":0}]
[null,"12:45:00",{"$f":"IFERROR(INDEX(ListăCursuri[],MATCH(SUMPRODUCT((ListăCursuri[ZIUA]=OrarulCursurilor[[#Headers],[DUMINICĂ]])*(ROUNDDOWN($B23,10)>=ROUNDDOWN(ListăCursuri[ORA DE ÎNCEPUT],10))*($B23<=ListăCursuri[ORA DE SFÂRȘIT]),ListăCursuri[UNICE]),ListăCursuri[UNICE],0),2),0)","v":0},{"$f":"IFERROR(INDEX(ListăCursuri[],MATCH(SUMPRODUCT((ListăCursuri[ZIUA]=OrarulCursurilor[[#Headers],[LUNI]])*(ROUNDDOWN($B23,10)>=ROUNDDOWN(ListăCursuri[ORA DE ÎNCEPUT],10))*($B23<=ListăCursuri[ORA DE SFÂRȘIT]),ListăCursuri[UNICE]),ListăCursuri[UNICE],0),2),0)","v":0},{"$f":"IFERROR(INDEX(ListăCursuri[],MATCH(SUMPRODUCT((ListăCursuri[ZIUA]=OrarulCursurilor[[#Headers],[MARȚI]])*(ROUNDDOWN($B23,10)>=ROUNDDOWN(ListăCursuri[ORA DE ÎNCEPUT],10))*($B23<=ListăCursuri[ORA DE SFÂRȘIT]),ListăCursuri[UNICE]),ListăCursuri[UNICE],0),2),0)","v":0},{"$f":"IFERROR(INDEX(ListăCursuri[],MATCH(SUMPRODUCT((ListăCursuri[ZIUA]=OrarulCursurilor[[#Headers],[MIERCURI]])*(ROUNDDOWN($B23,10)>=ROUNDDOWN(ListăCursuri[ORA DE ÎNCEPUT],10))*($B23<=ListăCursuri[ORA DE SFÂRȘIT]),ListăCursuri[UNICE]),ListăCursuri[UNICE],0),2),0)","v":0},{"$f":"IFERROR(INDEX(ListăCursuri[],MATCH(SUMPRODUCT((ListăCursuri[ZIUA]=OrarulCursurilor[[#Headers],[JOI]])*(ROUNDDOWN($B23,10)>=ROUNDDOWN(ListăCursuri[ORA DE ÎNCEPUT],10))*($B23<=ListăCursuri[ORA DE SFÂRȘIT]),ListăCursuri[UNICE]),ListăCursuri[UNICE],0),2),0)","v":0},{"$f":"IFERROR(INDEX(ListăCursuri[],MATCH(SUMPRODUCT((ListăCursuri[ZIUA]=OrarulCursurilor[[#Headers],[VINERI]])*(ROUNDDOWN($B23,10)>=ROUNDDOWN(ListăCursuri[ORA DE ÎNCEPUT],10))*($B23<=ListăCursuri[ORA DE SFÂRȘIT]),ListăCursuri[UNICE]),ListăCursuri[UNICE],0),2),0)","v":0},{"$f":"IFERROR(INDEX(ListăCursuri[],MATCH(SUMPRODUCT((ListăCursuri[ZIUA]=OrarulCursurilor[[#Headers],[SÂMBĂTĂ]])*(ROUNDDOWN($B23,10)>=ROUNDDOWN(ListăCursuri[ORA DE ÎNCEPUT],10))*($B23<=ListăCursuri[ORA DE SFÂRȘIT]),ListăCursuri[UNICE]),ListăCursuri[UNICE],0),2),0)","v":0}]
[null,"13:00:00",{"$f":"IFERROR(INDEX(ListăCursuri[],MATCH(SUMPRODUCT((ListăCursuri[ZIUA]=OrarulCursurilor[[#Headers],[DUMINICĂ]])*(ROUNDDOWN($B24,10)>=ROUNDDOWN(ListăCursuri[ORA DE ÎNCEPUT],10))*($B24<=ListăCursuri[ORA DE SFÂRȘIT]),ListăCursuri[UNICE]),ListăCursuri[UNICE],0),2),0)","v":0},{"$f":"IFERROR(INDEX(ListăCursuri[],MATCH(SUMPRODUCT((ListăCursuri[ZIUA]=OrarulCursurilor[[#Headers],[LUNI]])*(ROUNDDOWN($B24,10)>=ROUNDDOWN(ListăCursuri[ORA DE ÎNCEPUT],10))*($B24<=ListăCursuri[ORA DE SFÂRȘIT]),ListăCursuri[UNICE]),ListăCursuri[UNICE],0),2),0)","v":"SC-121"},{"$f":"IFERROR(INDEX(ListăCursuri[],MATCH(SUMPRODUCT((ListăCursuri[ZIUA]=OrarulCursurilor[[#Headers],[MARȚI]])*(ROUNDDOWN($B24,10)>=ROUNDDOWN(ListăCursuri[ORA DE ÎNCEPUT],10))*($B24<=ListăCursuri[ORA DE SFÂRȘIT]),ListăCursuri[UNICE]),ListăCursuri[UNICE],0),2),0)","v":0},{"$f":"IFERROR(INDEX(ListăCursuri[],MATCH(SUMPRODUCT((ListăCursuri[ZIUA]=OrarulCursurilor[[#Headers],[MIERCURI]])*(ROUNDDOWN($B24,10)>=ROUNDDOWN(ListăCursuri[ORA DE ÎNCEPUT],10))*($B24<=ListăCursuri[ORA DE SFÂRȘIT]),ListăCursuri[UNICE]),ListăCursuri[UNICE],0),2),0)","v":"SC-121"},{"$f":"IFERROR(INDEX(ListăCursuri[],MATCH(SUMPRODUCT((ListăCursuri[ZIUA]=OrarulCursurilor[[#Headers],[JOI]])*(ROUNDDOWN($B24,10)>=ROUNDDOWN(ListăCursuri[ORA DE ÎNCEPUT],10))*($B24<=ListăCursuri[ORA DE SFÂRȘIT]),ListăCursuri[UNICE]),ListăCursuri[UNICE],0),2),0)","v":0},{"$f":"IFERROR(INDEX(ListăCursuri[],MATCH(SUMPRODUCT((ListăCursuri[ZIUA]=OrarulCursurilor[[#Headers],[VINERI]])*(ROUNDDOWN($B24,10)>=ROUNDDOWN(ListăCursuri[ORA DE ÎNCEPUT],10))*($B24<=ListăCursuri[ORA DE SFÂRȘIT]),ListăCursuri[UNICE]),ListăCursuri[UNICE],0),2),0)","v":0},{"$f":"IFERROR(INDEX(ListăCursuri[],MATCH(SUMPRODUCT((ListăCursuri[ZIUA]=OrarulCursurilor[[#Headers],[SÂMBĂTĂ]])*(ROUNDDOWN($B24,10)>=ROUNDDOWN(ListăCursuri[ORA DE ÎNCEPUT],10))*($B24<=ListăCursuri[ORA DE SFÂRȘIT]),ListăCursuri[UNICE]),ListăCursuri[UNICE],0),2),0)","v":0}]
[null,"13:15:00",{"$f":"IFERROR(INDEX(ListăCursuri[],MATCH(SUMPRODUCT((ListăCursuri[ZIUA]=OrarulCursurilor[[#Headers],[DUMINICĂ]])*(ROUNDDOWN($B25,10)>=ROUNDDOWN(ListăCursuri[ORA DE ÎNCEPUT],10))*($B25<=ListăCursuri[ORA DE SFÂRȘIT]),ListăCursuri[UNICE]),ListăCursuri[UNICE],0),2),0)","v":0},{"$f":"IFERROR(INDEX(ListăCursuri[],MATCH(SUMPRODUCT((ListăCursuri[ZIUA]=OrarulCursurilor[[#Headers],[LUNI]])*(ROUNDDOWN($B25,10)>=ROUNDDOWN(ListăCursuri[ORA DE ÎNCEPUT],10))*($B25<=ListăCursuri[ORA DE SFÂRȘIT]),ListăCursuri[UNICE]),ListăCursuri[UNICE],0),2),0)","v":"SC-121"},{"$f":"IFERROR(INDEX(ListăCursuri[],MATCH(SUMPRODUCT((ListăCursuri[ZIUA]=OrarulCursurilor[[#Headers],[MARȚI]])*(ROUNDDOWN($B25,10)>=ROUNDDOWN(ListăCursuri[ORA DE ÎNCEPUT],10))*($B25<=ListăCursuri[ORA DE SFÂRȘIT]),ListăCursuri[UNICE]),ListăCursuri[UNICE],0),2),0)","v":0},{"$f":"IFERROR(INDEX(ListăCursuri[],MATCH(SUMPRODUCT((ListăCursuri[ZIUA]=OrarulCursurilor[[#Headers],[MIERCURI]])*(ROUNDDOWN($B25,10)>=ROUNDDOWN(ListăCursuri[ORA DE ÎNCEPUT],10))*($B25<=ListăCursuri[ORA DE SFÂRȘIT]),ListăCursuri[UNICE]),ListăCursuri[UNICE],0),2),0)","v":"SC-121"},{"$f":"IFERROR(INDEX(ListăCursuri[],MATCH(SUMPRODUCT((ListăCursuri[ZIUA]=OrarulCursurilor[[#Headers],[JOI]])*(ROUNDDOWN($B25,10)>=ROUNDDOWN(ListăCursuri[ORA DE ÎNCEPUT],10))*($B25<=ListăCursuri[ORA DE SFÂRȘIT]),ListăCursuri[UNICE]),ListăCursuri[UNICE],0),2),0)","v":0},{"$f":"IFERROR(INDEX(ListăCursuri[],MATCH(SUMPRODUCT((ListăCursuri[ZIUA]=OrarulCursurilor[[#Headers],[VINERI]])*(ROUNDDOWN($B25,10)>=ROUNDDOWN(ListăCursuri[ORA DE ÎNCEPUT],10))*($B25<=ListăCursuri[ORA DE SFÂRȘIT]),ListăCursuri[UNICE]),ListăCursuri[UNICE],0),2),0)","v":0},{"$f":"IFERROR(INDEX(ListăCursuri[],MATCH(SUMPRODUCT((ListăCursuri[ZIUA]=OrarulCursurilor[[#Headers],[SÂMBĂTĂ]])*(ROUNDDOWN($B25,10)>=ROUNDDOWN(ListăCursuri[ORA DE ÎNCEPUT],10))*($B25<=ListăCursuri[ORA DE SFÂRȘIT]),ListăCursuri[UNICE]),ListăCursuri[UNICE],0),2),0)","v":0}]
[null,"13:30:00",{"$f":"IFERROR(INDEX(ListăCursuri[],MATCH(SUMPRODUCT((ListăCursuri[ZIUA]=OrarulCursurilor[[#Headers],[DUMINICĂ]])*(ROUNDDOWN($B26,10)>=ROUNDDOWN(ListăCursuri[ORA DE ÎNCEPUT],10))*($B26<=ListăCursuri[ORA DE SFÂRȘIT]),ListăCursuri[UNICE]),ListăCursuri[UNICE],0),2),0)","v":0},{"$f":"IFERROR(INDEX(ListăCursuri[],MATCH(SUMPRODUCT((ListăCursuri[ZIUA]=OrarulCursurilor[[#Headers],[LUNI]])*(ROUNDDOWN($B26,10)>=ROUNDDOWN(ListăCursuri[ORA DE ÎNCEPUT],10))*($B26<=ListăCursuri[ORA DE SFÂRȘIT]),ListăCursuri[UNICE]),ListăCursuri[UNICE],0),2),0)","v":"SC-121"},{"$f":"IFERROR(INDEX(ListăCursuri[],MATCH(SUMPRODUCT((ListăCursuri[ZIUA]=OrarulCursurilor[[#Headers],[MARȚI]])*(ROUNDDOWN($B26,10)>=ROUNDDOWN(ListăCursuri[ORA DE ÎNCEPUT],10))*($B26<=ListăCursuri[ORA DE SFÂRȘIT]),ListăCursuri[UNICE]),ListăCursuri[UNICE],0),2),0)","v":0},{"$f":"IFERROR(INDEX(ListăCursuri[],MATCH(SUMPRODUCT((ListăCursuri[ZIUA]=OrarulCursurilor[[#Headers],[MIERCURI]])*(ROUNDDOWN($B26,10)>=ROUNDDOWN(ListăCursuri[ORA DE ÎNCEPUT],10))*($B26<=ListăCursuri[ORA DE SFÂRȘIT]),ListăCursuri[UNICE]),ListăCursuri[UNICE],0),2),0)","v":"SC-121"},{"$f":"IFERROR(INDEX(ListăCursuri[],MATCH(SUMPRODUCT((ListăCursuri[ZIUA]=OrarulCursurilor[[#Headers],[JOI]])*(ROUNDDOWN($B26,10)>=ROUNDDOWN(ListăCursuri[ORA DE ÎNCEPUT],10))*($B26<=ListăCursuri[ORA DE SFÂRȘIT]),ListăCursuri[UNICE]),ListăCursuri[UNICE],0),2),0)","v":0},{"$f":"IFERROR(INDEX(ListăCursuri[],MATCH(SUMPRODUCT((ListăCursuri[ZIUA]=OrarulCursurilor[[#Headers],[VINERI]])*(ROUNDDOWN($B26,10)>=ROUNDDOWN(ListăCursuri[ORA DE ÎNCEPUT],10))*($B26<=ListăCursuri[ORA DE SFÂRȘIT]),ListăCursuri[UNICE]),ListăCursuri[UNICE],0),2),0)","v":0},{"$f":"IFERROR(INDEX(ListăCursuri[],MATCH(SUMPRODUCT((ListăCursuri[ZIUA]=OrarulCursurilor[[#Headers],[SÂMBĂTĂ]])*(ROUNDDOWN($B26,10)>=ROUNDDOWN(ListăCursuri[ORA DE ÎNCEPUT],10))*($B26<=ListăCursuri[ORA DE SFÂRȘIT]),ListăCursuri[UNICE]),ListăCursuri[UNICE],0),2),0)","v":0}]
[null,"13:45:00",{"$f":"IFERROR(INDEX(ListăCursuri[],MATCH(SUMPRODUCT((ListăCursuri[ZIUA]=OrarulCursurilor[[#Headers],[DUMINICĂ]])*(ROUNDDOWN($B27,10)>=ROUNDDOWN(ListăCursuri[ORA DE ÎNCEPUT],10))*($B27<=ListăCursuri[ORA DE SFÂRȘIT]),ListăCursuri[UNICE]),ListăCursuri[UNICE],0),2),0)","v":0},{"$f":"IFERROR(INDEX(ListăCursuri[],MATCH(SUMPRODUCT((ListăCursuri[ZIUA]=OrarulCursurilor[[#Headers],[LUNI]])*(ROUNDDOWN($B27,10)>=ROUNDDOWN(ListăCursuri[ORA DE ÎNCEPUT],10))*($B27<=ListăCursuri[ORA DE SFÂRȘIT]),ListăCursuri[UNICE]),ListăCursuri[UNICE],0),2),0)","v":"SC-121"},{"$f":"IFERROR(INDEX(ListăCursuri[],MATCH(SUMPRODUCT((ListăCursuri[ZIUA]=OrarulCursurilor[[#Headers],[MARȚI]])*(ROUNDDOWN($B27,10)>=ROUNDDOWN(ListăCursuri[ORA DE ÎNCEPUT],10))*($B27<=ListăCursuri[ORA DE SFÂRȘIT]),ListăCursuri[UNICE]),ListăCursuri[UNICE],0),2),0)","v":0},{"$f":"IFERROR(INDEX(ListăCursuri[],MATCH(SUMPRODUCT((ListăCursuri[ZIUA]=OrarulCursurilor[[#Headers],[MIERCURI]])*(ROUNDDOWN($B27,10)>=ROUNDDOWN(ListăCursuri[ORA DE ÎNCEPUT],10))*($B27<=ListăCursuri[ORA DE SFÂRȘIT]),ListăCursuri[UNICE]),ListăCursuri[UNICE],0),2),0)","v":"SC-121"},{"$f":"IFERROR(INDEX(ListăCursuri[],MATCH(SUMPRODUCT((ListăCursuri[ZIUA]=OrarulCursurilor[[#Headers],[JOI]])*(ROUNDDOWN($B27,10)>=ROUNDDOWN(ListăCursuri[ORA DE ÎNCEPUT],10))*($B27<=ListăCursuri[ORA DE SFÂRȘIT]),ListăCursuri[UNICE]),ListăCursuri[UNICE],0),2),0)","v":0},{"$f":"IFERROR(INDEX(ListăCursuri[],MATCH(SUMPRODUCT((ListăCursuri[ZIUA]=OrarulCursurilor[[#Headers],[VINERI]])*(ROUNDDOWN($B27,10)>=ROUNDDOWN(ListăCursuri[ORA DE ÎNCEPUT],10))*($B27<=ListăCursuri[ORA DE SFÂRȘIT]),ListăCursuri[UNICE]),ListăCursuri[UNICE],0),2),0)","v":0},{"$f":"IFERROR(INDEX(ListăCursuri[],MATCH(SUMPRODUCT((ListăCursuri[ZIUA]=OrarulCursurilor[[#Headers],[SÂMBĂTĂ]])*(ROUNDDOWN($B27,10)>=ROUNDDOWN(ListăCursuri[ORA DE ÎNCEPUT],10))*($B27<=ListăCursuri[ORA DE SFÂRȘIT]),ListăCursuri[UNICE]),ListăCursuri[UNICE],0),2),0)","v":0}]
[null,"14:00:00",{"$f":"IFERROR(INDEX(ListăCursuri[],MATCH(SUMPRODUCT((ListăCursuri[ZIUA]=OrarulCursurilor[[#Headers],[DUMINICĂ]])*(ROUNDDOWN($B28,10)>=ROUNDDOWN(ListăCursuri[ORA DE ÎNCEPUT],10))*($B28<=ListăCursuri[ORA DE SFÂRȘIT]),ListăCursuri[UNICE]),ListăCursuri[UNICE],0),2),0)","v":0},{"$f":"IFERROR(INDEX(ListăCursuri[],MATCH(SUMPRODUCT((ListăCursuri[ZIUA]=OrarulCursurilor[[#Headers],[LUNI]])*(ROUNDDOWN($B28,10)>=ROUNDDOWN(ListăCursuri[ORA DE ÎNCEPUT],10))*($B28<=ListăCursuri[ORA DE SFÂRȘIT]),ListăCursuri[UNICE]),ListăCursuri[UNICE],0),2),0)","v":"SC-121"},{"$f":"IFERROR(INDEX(ListăCursuri[],MATCH(SUMPRODUCT((ListăCursuri[ZIUA]=OrarulCursurilor[[#Headers],[MARȚI]])*(ROUNDDOWN($B28,10)>=ROUNDDOWN(ListăCursuri[ORA DE ÎNCEPUT],10))*($B28<=ListăCursuri[ORA DE SFÂRȘIT]),ListăCursuri[UNICE]),ListăCursuri[UNICE],0),2),0)","v":0},{"$f":"IFERROR(INDEX(ListăCursuri[],MATCH(SUMPRODUCT((ListăCursuri[ZIUA]=OrarulCursurilor[[#Headers],[MIERCURI]])*(ROUNDDOWN($B28,10)>=ROUNDDOWN(ListăCursuri[ORA DE ÎNCEPUT],10))*($B28<=ListăCursuri[ORA DE SFÂRȘIT]),ListăCursuri[UNICE]),ListăCursuri[UNICE],0),2),0)","v":"SC-121"},{"$f":"IFERROR(INDEX(ListăCursuri[],MATCH(SUMPRODUCT((ListăCursuri[ZIUA]=OrarulCursurilor[[#Headers],[JOI]])*(ROUNDDOWN($B28,10)>=ROUNDDOWN(ListăCursuri[ORA DE ÎNCEPUT],10))*($B28<=ListăCursuri[ORA DE SFÂRȘIT]),ListăCursuri[UNICE]),ListăCursuri[UNICE],0),2),0)","v":0},{"$f":"IFERROR(INDEX(ListăCursuri[],MATCH(SUMPRODUCT((ListăCursuri[ZIUA]=OrarulCursurilor[[#Headers],[VINERI]])*(ROUNDDOWN($B28,10)>=ROUNDDOWN(ListăCursuri[ORA DE ÎNCEPUT],10))*($B28<=ListăCursuri[ORA DE SFÂRȘIT]),ListăCursuri[UNICE]),ListăCursuri[UNICE],0),2),0)","v":0},{"$f":"IFERROR(INDEX(ListăCursuri[],MATCH(SUMPRODUCT((ListăCursuri[ZIUA]=OrarulCursurilor[[#Headers],[SÂMBĂTĂ]])*(ROUNDDOWN($B28,10)>=ROUNDDOWN(ListăCursuri[ORA DE ÎNCEPUT],10))*($B28<=ListăCursuri[ORA DE SFÂRȘIT]),ListăCursuri[UNICE]),ListăCursuri[UNICE],0),2),0)","v":0}]
[null,"14:15:00",{"$f":"IFERROR(INDEX(ListăCursuri[],MATCH(SUMPRODUCT((ListăCursuri[ZIUA]=OrarulCursurilor[[#Headers],[DUMINICĂ]])*(ROUNDDOWN($B29,10)>=ROUNDDOWN(ListăCursuri[ORA DE ÎNCEPUT],10))*($B29<=ListăCursuri[ORA DE SFÂRȘIT]),ListăCursuri[UNICE]),ListăCursuri[UNICE],0),2),0)","v":0},{"$f":"IFERROR(INDEX(ListăCursuri[],MATCH(SUMPRODUCT((ListăCursuri[ZIUA]=OrarulCursurilor[[#Headers],[LUNI]])*(ROUNDDOWN($B29,10)>=ROUNDDOWN(ListăCursuri[ORA DE ÎNCEPUT],10))*($B29<=ListăCursuri[ORA DE SFÂRȘIT]),ListăCursuri[UNICE]),ListăCursuri[UNICE],0),2),0)","v":0},{"$f":"IFERROR(INDEX(ListăCursuri[],MATCH(SUMPRODUCT((ListăCursuri[ZIUA]=OrarulCursurilor[[#Headers],[MARȚI]])*(ROUNDDOWN($B29,10)>=ROUNDDOWN(ListăCursuri[ORA DE ÎNCEPUT],10))*($B29<=ListăCursuri[ORA DE SFÂRȘIT]),ListăCursuri[UNICE]),ListăCursuri[UNICE],0),2),0)","v":0},{"$f":"IFERROR(INDEX(ListăCursuri[],MATCH(SUMPRODUCT((ListăCursuri[ZIUA]=OrarulCursurilor[[#Headers],[MIERCURI]])*(ROUNDDOWN($B29,10)>=ROUNDDOWN(ListăCursuri[ORA DE ÎNCEPUT],10))*($B29<=ListăCursuri[ORA DE SFÂRȘIT]),ListăCursuri[UNICE]),ListăCursuri[UNICE],0),2),0)","v":0},{"$f":"IFERROR(INDEX(ListăCursuri[],MATCH(SUMPRODUCT((ListăCursuri[ZIUA]=OrarulCursurilor[[#Headers],[JOI]])*(ROUNDDOWN($B29,10)>=ROUNDDOWN(ListăCursuri[ORA DE ÎNCEPUT],10))*($B29<=ListăCursuri[ORA DE SFÂRȘIT]),ListăCursuri[UNICE]),ListăCursuri[UNICE],0),2),0)","v":0},{"$f":"IFERROR(INDEX(ListăCursuri[],MATCH(SUMPRODUCT((ListăCursuri[ZIUA]=OrarulCursurilor[[#Headers],[VINERI]])*(ROUNDDOWN($B29,10)>=ROUNDDOWN(ListăCursuri[ORA DE ÎNCEPUT],10))*($B29<=ListăCursuri[ORA DE SFÂRȘIT]),ListăCursuri[UNICE]),ListăCursuri[UNICE],0),2),0)","v":0},{"$f":"IFERROR(INDEX(ListăCursuri[],MATCH(SUMPRODUCT((ListăCursuri[ZIUA]=OrarulCursurilor[[#Headers],[SÂMBĂTĂ]])*(ROUNDDOWN($B29,10)>=ROUNDDOWN(ListăCursuri[ORA DE ÎNCEPUT],10))*($B29<=ListăCursuri[ORA DE SFÂRȘIT]),ListăCursuri[UNICE]),ListăCursuri[UNICE],0),2),0)","v":0}]
[null,"14:30:00",{"$f":"IFERROR(INDEX(ListăCursuri[],MATCH(SUMPRODUCT((ListăCursuri[ZIUA]=OrarulCursurilor[[#Headers],[DUMINICĂ]])*(ROUNDDOWN($B30,10)>=ROUNDDOWN(ListăCursuri[ORA DE ÎNCEPUT],10))*($B30<=ListăCursuri[ORA DE SFÂRȘIT]),ListăCursuri[UNICE]),ListăCursuri[UNICE],0),2),0)","v":0},{"$f":"IFERROR(INDEX(ListăCursuri[],MATCH(SUMPRODUCT((ListăCursuri[ZIUA]=OrarulCursurilor[[#Headers],[LUNI]])*(ROUNDDOWN($B30,10)>=ROUNDDOWN(ListăCursuri[ORA DE ÎNCEPUT],10))*($B30<=ListăCursuri[ORA DE SFÂRȘIT]),ListăCursuri[UNICE]),ListăCursuri[UNICE],0),2),0)","v":0},{"$f":"IFERROR(INDEX(ListăCursuri[],MATCH(SUMPRODUCT((ListăCursuri[ZIUA]=OrarulCursurilor[[#Headers],[MARȚI]])*(ROUNDDOWN($B30,10)>=ROUNDDOWN(ListăCursuri[ORA DE ÎNCEPUT],10))*($B30<=ListăCursuri[ORA DE SFÂRȘIT]),ListăCursuri[UNICE]),ListăCursuri[UNICE],0),2),0)","v":0},{"$f":"IFERROR(INDEX(ListăCursuri[],MATCH(SUMPRODUCT((ListăCursuri[ZIUA]=OrarulCursurilor[[#Headers],[MIERCURI]])*(ROUNDDOWN($B30,10)>=ROUNDDOWN(ListăCursuri[ORA DE ÎNCEPUT],10))*($B30<=ListăCursuri[ORA DE SFÂRȘIT]),ListăCursuri[UNICE]),ListăCursuri[UNICE],0),2),0)","v":0},{"$f":"IFERROR(INDEX(ListăCursuri[],MATCH(SUMPRODUCT((ListăCursuri[ZIUA]=OrarulCursurilor[[#Headers],[JOI]])*(ROUNDDOWN($B30,10)>=ROUNDDOWN(ListăCursuri[ORA DE ÎNCEPUT],10))*($B30<=ListăCursuri[ORA DE SFÂRȘIT]),ListăCursuri[UNICE]),ListăCursuri[UNICE],0),2),0)","v":0},{"$f":"IFERROR(INDEX(ListăCursuri[],MATCH(SUMPRODUCT((ListăCursuri[ZIUA]=OrarulCursurilor[[#Headers],[VINERI]])*(ROUNDDOWN($B30,10)>=ROUNDDOWN(ListăCursuri[ORA DE ÎNCEPUT],10))*($B30<=ListăCursuri[ORA DE SFÂRȘIT]),ListăCursuri[UNICE]),ListăCursuri[UNICE],0),2),0)","v":0},{"$f":"IFERROR(INDEX(ListăCursuri[],MATCH(SUMPRODUCT((ListăCursuri[ZIUA]=OrarulCursurilor[[#Headers],[SÂMBĂTĂ]])*(ROUNDDOWN($B30,10)>=ROUNDDOWN(ListăCursuri[ORA DE ÎNCEPUT],10))*($B30<=ListăCursuri[ORA DE SFÂRȘIT]),ListăCursuri[UNICE]),ListăCursuri[UNICE],0),2),0)","v":0}]
[null,"14:45:00",{"$f":"IFERROR(INDEX(ListăCursuri[],MATCH(SUMPRODUCT((ListăCursuri[ZIUA]=OrarulCursurilor[[#Headers],[DUMINICĂ]])*(ROUNDDOWN($B31,10)>=ROUNDDOWN(ListăCursuri[ORA DE ÎNCEPUT],10))*($B31<=ListăCursuri[ORA DE SFÂRȘIT]),ListăCursuri[UNICE]),ListăCursuri[UNICE],0),2),0)","v":0},{"$f":"IFERROR(INDEX(ListăCursuri[],MATCH(SUMPRODUCT((ListăCursuri[ZIUA]=OrarulCursurilor[[#Headers],[LUNI]])*(ROUNDDOWN($B31,10)>=ROUNDDOWN(ListăCursuri[ORA DE ÎNCEPUT],10))*($B31<=ListăCursuri[ORA DE SFÂRȘIT]),ListăCursuri[UNICE]),ListăCursuri[UNICE],0),2),0)","v":0},{"$f":"IFERROR(INDEX(ListăCursuri[],MATCH(SUMPRODUCT((ListăCursuri[ZIUA]=OrarulCursurilor[[#Headers],[MARȚI]])*(ROUNDDOWN($B31,10)>=ROUNDDOWN(ListăCursuri[ORA DE ÎNCEPUT],10))*($B31<=ListăCursuri[ORA DE SFÂRȘIT]),ListăCursuri[UNICE]),ListăCursuri[UNICE],0),2),0)","v":0},{"$f":"IFERROR(INDEX(ListăCursuri[],MATCH(SUMPRODUCT((ListăCursuri[ZIUA]=OrarulCursurilor[[#Headers],[MIERCURI]])*(ROUNDDOWN($B31,10)>=ROUNDDOWN(ListăCursuri[ORA DE ÎNCEPUT],10))*($B31<=ListăCursuri[ORA DE SFÂRȘIT]),ListăCursuri[UNICE]),ListăCursuri[UNICE],0),2),0)","v":0},{"$f":"IFERROR(INDEX(ListăCursuri[],MATCH(SUMPRODUCT((ListăCursuri[ZIUA]=OrarulCursurilor[[#Headers],[JOI]])*(ROUNDDOWN($B31,10)>=ROUNDDOWN(ListăCursuri[ORA DE ÎNCEPUT],10))*($B31<=ListăCursuri[ORA DE SFÂRȘIT]),ListăCursuri[UNICE]),ListăCursuri[UNICE],0),2),0)","v":0},{"$f":"IFERROR(INDEX(ListăCursuri[],MATCH(SUMPRODUCT((ListăCursuri[ZIUA]=OrarulCursurilor[[#Headers],[VINERI]])*(ROUNDDOWN($B31,10)>=ROUNDDOWN(ListăCursuri[ORA DE ÎNCEPUT],10))*($B31<=ListăCursuri[ORA DE SFÂRȘIT]),ListăCursuri[UNICE]),ListăCursuri[UNICE],0),2),0)","v":0},{"$f":"IFERROR(INDEX(ListăCursuri[],MATCH(SUMPRODUCT((ListăCursuri[ZIUA]=OrarulCursurilor[[#Headers],[SÂMBĂTĂ]])*(ROUNDDOWN($B31,10)>=ROUNDDOWN(ListăCursuri[ORA DE ÎNCEPUT],10))*($B31<=ListăCursuri[ORA DE SFÂRȘIT]),ListăCursuri[UNICE]),ListăCursuri[UNICE],0),2),0)","v":0}]
[null,"15:00:00",{"$f":"IFERROR(INDEX(ListăCursuri[],MATCH(SUMPRODUCT((ListăCursuri[ZIUA]=OrarulCursurilor[[#Headers],[DUMINICĂ]])*(ROUNDDOWN($B32,10)>=ROUNDDOWN(ListăCursuri[ORA DE ÎNCEPUT],10))*($B32<=ListăCursuri[ORA DE SFÂRȘIT]),ListăCursuri[UNICE]),ListăCursuri[UNICE],0),2),0)","v":0},{"$f":"IFERROR(INDEX(ListăCursuri[],MATCH(SUMPRODUCT((ListăCursuri[ZIUA]=OrarulCursurilor[[#Headers],[LUNI]])*(ROUNDDOWN($B32,10)>=ROUNDDOWN(ListăCursuri[ORA DE ÎNCEPUT],10))*($B32<=ListăCursuri[ORA DE SFÂRȘIT]),ListăCursuri[UNICE]),ListăCursuri[UNICE],0),2),0)","v":0},{"$f":"IFERROR(INDEX(ListăCursuri[],MATCH(SUMPRODUCT((ListăCursuri[ZIUA]=OrarulCursurilor[[#Headers],[MARȚI]])*(ROUNDDOWN($B32,10)>=ROUNDDOWN(ListăCursuri[ORA DE ÎNCEPUT],10))*($B32<=ListăCursuri[ORA DE SFÂRȘIT]),ListăCursuri[UNICE]),ListăCursuri[UNICE],0),2),0)","v":0},{"$f":"IFERROR(INDEX(ListăCursuri[],MATCH(SUMPRODUCT((ListăCursuri[ZIUA]=OrarulCursurilor[[#Headers],[MIERCURI]])*(ROUNDDOWN($B32,10)>=ROUNDDOWN(ListăCursuri[ORA DE ÎNCEPUT],10))*($B32<=ListăCursuri[ORA DE SFÂRȘIT]),ListăCursuri[UNICE]),ListăCursuri[UNICE],0),2),0)","v":0},{"$f":"IFERROR(INDEX(ListăCursuri[],MATCH(SUMPRODUCT((ListăCursuri[ZIUA]=OrarulCursurilor[[#Headers],[JOI]])*(ROUNDDOWN($B32,10)>=ROUNDDOWN(ListăCursuri[ORA DE ÎNCEPUT],10))*($B32<=ListăCursuri[ORA DE SFÂRȘIT]),ListăCursuri[UNICE]),ListăCursuri[UNICE],0),2),0)","v":0},{"$f":"IFERROR(INDEX(ListăCursuri[],MATCH(SUMPRODUCT((ListăCursuri[ZIUA]=OrarulCursurilor[[#Headers],[VINERI]])*(ROUNDDOWN($B32,10)>=ROUNDDOWN(ListăCursuri[ORA DE ÎNCEPUT],10))*($B32<=ListăCursuri[ORA DE SFÂRȘIT]),ListăCursuri[UNICE]),ListăCursuri[UNICE],0),2),0)","v":0},{"$f":"IFERROR(INDEX(ListăCursuri[],MATCH(SUMPRODUCT((ListăCursuri[ZIUA]=OrarulCursurilor[[#Headers],[SÂMBĂTĂ]])*(ROUNDDOWN($B32,10)>=ROUNDDOWN(ListăCursuri[ORA DE ÎNCEPUT],10))*($B32<=ListăCursuri[ORA DE SFÂRȘIT]),ListăCursuri[UNICE]),ListăCursuri[UNICE],0),2),0)","v":0}]
[null,"15:15:00",{"$f":"IFERROR(INDEX(ListăCursuri[],MATCH(SUMPRODUCT((ListăCursuri[ZIUA]=OrarulCursurilor[[#Headers],[DUMINICĂ]])*(ROUNDDOWN($B33,10)>=ROUNDDOWN(ListăCursuri[ORA DE ÎNCEPUT],10))*($B33<=ListăCursuri[ORA DE SFÂRȘIT]),ListăCursuri[UNICE]),ListăCursuri[UNICE],0),2),0)","v":0},{"$f":"IFERROR(INDEX(ListăCursuri[],MATCH(SUMPRODUCT((ListăCursuri[ZIUA]=OrarulCursurilor[[#Headers],[LUNI]])*(ROUNDDOWN($B33,10)>=ROUNDDOWN(ListăCursuri[ORA DE ÎNCEPUT],10))*($B33<=ListăCursuri[ORA DE SFÂRȘIT]),ListăCursuri[UNICE]),ListăCursuri[UNICE],0),2),0)","v":0},{"$f":"IFERROR(INDEX(ListăCursuri[],MATCH(SUMPRODUCT((ListăCursuri[ZIUA]=OrarulCursurilor[[#Headers],[MARȚI]])*(ROUNDDOWN($B33,10)>=ROUNDDOWN(ListăCursuri[ORA DE ÎNCEPUT],10))*($B33<=ListăCursuri[ORA DE SFÂRȘIT]),ListăCursuri[UNICE]),ListăCursuri[UNICE],0),2),0)","v":0},{"$f":"IFERROR(INDEX(ListăCursuri[],MATCH(SUMPRODUCT((ListăCursuri[ZIUA]=OrarulCursurilor[[#Headers],[MIERCURI]])*(ROUNDDOWN($B33,10)>=ROUNDDOWN(ListăCursuri[ORA DE ÎNCEPUT],10))*($B33<=ListăCursuri[ORA DE SFÂRȘIT]),ListăCursuri[UNICE]),ListăCursuri[UNICE],0),2),0)","v":0},{"$f":"IFERROR(INDEX(ListăCursuri[],MATCH(SUMPRODUCT((ListăCursuri[ZIUA]=OrarulCursurilor[[#Headers],[JOI]])*(ROUNDDOWN($B33,10)>=ROUNDDOWN(ListăCursuri[ORA DE ÎNCEPUT],10))*($B33<=ListăCursuri[ORA DE SFÂRȘIT]),ListăCursuri[UNICE]),ListăCursuri[UNICE],0),2),0)","v":0},{"$f":"IFERROR(INDEX(ListăCursuri[],MATCH(SUMPRODUCT((ListăCursuri[ZIUA]=OrarulCursurilor[[#Headers],[VINERI]])*(ROUNDDOWN($B33,10)>=ROUNDDOWN(ListăCursuri[ORA DE ÎNCEPUT],10))*($B33<=ListăCursuri[ORA DE SFÂRȘIT]),ListăCursuri[UNICE]),ListăCursuri[UNICE],0),2),0)","v":0},{"$f":"IFERROR(INDEX(ListăCursuri[],MATCH(SUMPRODUCT((ListăCursuri[ZIUA]=OrarulCursurilor[[#Headers],[SÂMBĂTĂ]])*(ROUNDDOWN($B33,10)>=ROUNDDOWN(ListăCursuri[ORA DE ÎNCEPUT],10))*($B33<=ListăCursuri[ORA DE SFÂRȘIT]),ListăCursuri[UNICE]),ListăCursuri[UNICE],0),2),0)","v":0}]
[null,"15:30:00",{"$f":"IFERROR(INDEX(ListăCursuri[],MATCH(SUMPRODUCT((ListăCursuri[ZIUA]=OrarulCursurilor[[#Headers],[DUMINICĂ]])*(ROUNDDOWN($B34,10)>=ROUNDDOWN(ListăCursuri[ORA DE ÎNCEPUT],10))*($B34<=ListăCursuri[ORA DE SFÂRȘIT]),ListăCursuri[UNICE]),ListăCursuri[UNICE],0),2),0)","v":0},{"$f":"IFERROR(INDEX(ListăCursuri[],MATCH(SUMPRODUCT((ListăCursuri[ZIUA]=OrarulCursurilor[[#Headers],[LUNI]])*(ROUNDDOWN($B34,10)>=ROUNDDOWN(ListăCursuri[ORA DE ÎNCEPUT],10))*($B34<=ListăCursuri[ORA DE SFÂRȘIT]),ListăCursuri[UNICE]),ListăCursuri[UNICE],0),2),0)","v":0},{"$f":"IFERROR(INDEX(ListăCursuri[],MATCH(SUMPRODUCT((ListăCursuri[ZIUA]=OrarulCursurilor[[#Headers],[MARȚI]])*(ROUNDDOWN($B34,10)>=ROUNDDOWN(ListăCursuri[ORA DE ÎNCEPUT],10))*($B34<=ListăCursuri[ORA DE SFÂRȘIT]),ListăCursuri[UNICE]),ListăCursuri[UNICE],0),2),0)","v":0},{"$f":"IFERROR(INDEX(ListăCursuri[],MATCH(SUMPRODUCT((ListăCursuri[ZIUA]=OrarulCursurilor[[#Headers],[MIERCURI]])*(ROUNDDOWN($B34,10)>=ROUNDDOWN(ListăCursuri[ORA DE ÎNCEPUT],10))*($B34<=ListăCursuri[ORA DE SFÂRȘIT]),ListăCursuri[UNICE]),ListăCursuri[UNICE],0),2),0)","v":0},{"$f":"IFERROR(INDEX(ListăCursuri[],MATCH(SUMPRODUCT((ListăCursuri[ZIUA]=OrarulCursurilor[[#Headers],[JOI]])*(ROUNDDOWN($B34,10)>=ROUNDDOWN(ListăCursuri[ORA DE ÎNCEPUT],10))*($B34<=ListăCursuri[ORA DE SFÂRȘIT]),ListăCursuri[UNICE]),ListăCursuri[UNICE],0),2),0)","v":0},{"$f":"IFERROR(INDEX(ListăCursuri[],MATCH(SUMPRODUCT((ListăCursuri[ZIUA]=OrarulCursurilor[[#Headers],[VINERI]])*(ROUNDDOWN($B34,10)>=ROUNDDOWN(ListăCursuri[ORA DE ÎNCEPUT],10))*($B34<=ListăCursuri[ORA DE SFÂRȘIT]),ListăCursuri[UNICE]),ListăCursuri[UNICE],0),2),0)","v":0},{"$f":"IFERROR(INDEX(ListăCursuri[],MATCH(SUMPRODUCT((ListăCursuri[ZIUA]=OrarulCursurilor[[#Headers],[SÂMBĂTĂ]])*(ROUNDDOWN($B34,10)>=ROUNDDOWN(ListăCursuri[ORA DE ÎNCEPUT],10))*($B34<=ListăCursuri[ORA DE SFÂRȘIT]),ListăCursuri[UNICE]),ListăCursuri[UNICE],0),2),0)","v":0}]
[null,"15:45:00",{"$f":"IFERROR(INDEX(ListăCursuri[],MATCH(SUMPRODUCT((ListăCursuri[ZIUA]=OrarulCursurilor[[#Headers],[DUMINICĂ]])*(ROUNDDOWN($B35,10)>=ROUNDDOWN(ListăCursuri[ORA DE ÎNCEPUT],10))*($B35<=ListăCursuri[ORA DE SFÂRȘIT]),ListăCursuri[UNICE]),ListăCursuri[UNICE],0),2),0)","v":0},{"$f":"IFERROR(INDEX(ListăCursuri[],MATCH(SUMPRODUCT((ListăCursuri[ZIUA]=OrarulCursurilor[[#Headers],[LUNI]])*(ROUNDDOWN($B35,10)>=ROUNDDOWN(ListăCursuri[ORA DE ÎNCEPUT],10))*($B35<=ListăCursuri[ORA DE SFÂRȘIT]),ListăCursuri[UNICE]),ListăCursuri[UNICE],0),2),0)","v":0},{"$f":"IFERROR(INDEX(ListăCursuri[],MATCH(SUMPRODUCT((ListăCursuri[ZIUA]=OrarulCursurilor[[#Headers],[MARȚI]])*(ROUNDDOWN($B35,10)>=ROUNDDOWN(ListăCursuri[ORA DE ÎNCEPUT],10))*($B35<=ListăCursuri[ORA DE SFÂRȘIT]),ListăCursuri[UNICE]),ListăCursuri[UNICE],0),2),0)","v":0},{"$f":"IFERROR(INDEX(ListăCursuri[],MATCH(SUMPRODUCT((ListăCursuri[ZIUA]=OrarulCursurilor[[#Headers],[MIERCURI]])*(ROUNDDOWN($B35,10)>=ROUNDDOWN(ListăCursuri[ORA DE ÎNCEPUT],10))*($B35<=ListăCursuri[ORA DE SFÂRȘIT]),ListăCursuri[UNICE]),ListăCursuri[UNICE],0),2),0)","v":0},{"$f":"IFERROR(INDEX(ListăCursuri[],MATCH(SUMPRODUCT((ListăCursuri[ZIUA]=OrarulCursurilor[[#Headers],[JOI]])*(ROUNDDOWN($B35,10)>=ROUNDDOWN(ListăCursuri[ORA DE ÎNCEPUT],10))*($B35<=ListăCursuri[ORA DE SFÂRȘIT]),ListăCursuri[UNICE]),ListăCursuri[UNICE],0),2),0)","v":0},{"$f":"IFERROR(INDEX(ListăCursuri[],MATCH(SUMPRODUCT((ListăCursuri[ZIUA]=OrarulCursurilor[[#Headers],[VINERI]])*(ROUNDDOWN($B35,10)>=ROUNDDOWN(ListăCursuri[ORA DE ÎNCEPUT],10))*($B35<=ListăCursuri[ORA DE SFÂRȘIT]),ListăCursuri[UNICE]),ListăCursuri[UNICE],0),2),0)","v":0},{"$f":"IFERROR(INDEX(ListăCursuri[],MATCH(SUMPRODUCT((ListăCursuri[ZIUA]=OrarulCursurilor[[#Headers],[SÂMBĂTĂ]])*(ROUNDDOWN($B35,10)>=ROUNDDOWN(ListăCursuri[ORA DE ÎNCEPUT],10))*($B35<=ListăCursuri[ORA DE SFÂRȘIT]),ListăCursuri[UNICE]),ListăCursuri[UNICE],0),2),0)","v":0}]
[null,"16:00:00",{"$f":"IFERROR(INDEX(ListăCursuri[],MATCH(SUMPRODUCT((ListăCursuri[ZIUA]=OrarulCursurilor[[#Headers],[DUMINICĂ]])*(ROUNDDOWN($B36,10)>=ROUNDDOWN(ListăCursuri[ORA DE ÎNCEPUT],10))*($B36<=ListăCursuri[ORA DE SFÂRȘIT]),ListăCursuri[UNICE]),ListăCursuri[UNICE],0),2),0)","v":0},{"$f":"IFERROR(INDEX(ListăCursuri[],MATCH(SUMPRODUCT((ListăCursuri[ZIUA]=OrarulCursurilor[[#Headers],[LUNI]])*(ROUNDDOWN($B36,10)>=ROUNDDOWN(ListăCursuri[ORA DE ÎNCEPUT],10))*($B36<=ListăCursuri[ORA DE SFÂRȘIT]),ListăCursuri[UNICE]),ListăCursuri[UNICE],0),2),0)","v":"OR-111"},{"$f":"IFERROR(INDEX(ListăCursuri[],MATCH(SUMPRODUCT((ListăCursuri[ZIUA]=OrarulCursurilor[[#Headers],[MARȚI]])*(ROUNDDOWN($B36,10)>=ROUNDDOWN(ListăCursuri[ORA DE ÎNCEPUT],10))*($B36<=ListăCursuri[ORA DE SFÂRȘIT]),ListăCursuri[UNICE]),ListăCursuri[UNICE],0),2),0)","v":0},{"$f":"IFERROR(INDEX(ListăCursuri[],MATCH(SUMPRODUCT((ListăCursuri[ZIUA]=OrarulCursurilor[[#Headers],[MIERCURI]])*(ROUNDDOWN($B36,10)>=ROUNDDOWN(ListăCursuri[ORA DE ÎNCEPUT],10))*($B36<=ListăCursuri[ORA DE SFÂRȘIT]),ListăCursuri[UNICE]),ListăCursuri[UNICE],0),2),0)","v":0},{"$f":"IFERROR(INDEX(ListăCursuri[],MATCH(SUMPRODUCT((ListăCursuri[ZIUA]=OrarulCursurilor[[#Headers],[JOI]])*(ROUNDDOWN($B36,10)>=ROUNDDOWN(ListăCursuri[ORA DE ÎNCEPUT],10))*($B36<=ListăCursuri[ORA DE SFÂRȘIT]),ListăCursuri[UNICE]),ListăCursuri[UNICE],0),2),0)","v":0},{"$f":"IFERROR(INDEX(ListăCursuri[],MATCH(SUMPRODUCT((ListăCursuri[ZIUA]=OrarulCursurilor[[#Headers],[VINERI]])*(ROUNDDOWN($B36,10)>=ROUNDDOWN(ListăCursuri[ORA DE ÎNCEPUT],10))*($B36<=ListăCursuri[ORA DE SFÂRȘIT]),ListăCursuri[UNICE]),ListăCursuri[UNICE],0),2),0)","v":0},{"$f":"IFERROR(INDEX(ListăCursuri[],MATCH(SUMPRODUCT((ListăCursuri[ZIUA]=OrarulCursurilor[[#Headers],[SÂMBĂTĂ]])*(ROUNDDOWN($B36,10)>=ROUNDDOWN(ListăCursuri[ORA DE ÎNCEPUT],10))*($B36<=ListăCursuri[ORA DE SFÂRȘIT]),ListăCursuri[UNICE]),ListăCursuri[UNICE],0),2),0)","v":0}]
[null,{"$f":"B36+Increment","v":"16:15:00"},{"$f":"IFERROR(INDEX(ListăCursuri[],MATCH(SUMPRODUCT((ListăCursuri[ZIUA]=OrarulCursurilor[[#Headers],[DUMINICĂ]])*(ROUNDDOWN($B37,10)>=ROUNDDOWN(ListăCursuri[ORA DE ÎNCEPUT],10))*($B37<=ListăCursuri[ORA DE SFÂRȘIT]),ListăCursuri[UNICE]),ListăCursuri[UNICE],0),2),0)","v":0},{"$f":"IFERROR(INDEX(ListăCursuri[],MATCH(SUMPRODUCT((ListăCursuri[ZIUA]=OrarulCursurilor[[#Headers],[LUNI]])*(ROUNDDOWN($B37,10)>=ROUNDDOWN(ListăCursuri[ORA DE ÎNCEPUT],10))*($B37<=ListăCursuri[ORA DE SFÂRȘIT]),ListăCursuri[UNICE]),ListăCursuri[UNICE],0),2),0)","v":"OR-111"},{"$f":"IFERROR(INDEX(ListăCursuri[],MATCH(SUMPRODUCT((ListăCursuri[ZIUA]=OrarulCursurilor[[#Headers],[MARȚI]])*(ROUNDDOWN($B37,10)>=ROUNDDOWN(ListăCursuri[ORA DE ÎNCEPUT],10))*($B37<=ListăCursuri[ORA DE SFÂRȘIT]),ListăCursuri[UNICE]),ListăCursuri[UNICE],0),2),0)","v":0},{"$f":"IFERROR(INDEX(ListăCursuri[],MATCH(SUMPRODUCT((ListăCursuri[ZIUA]=OrarulCursurilor[[#Headers],[MIERCURI]])*(ROUNDDOWN($B37,10)>=ROUNDDOWN(ListăCursuri[ORA DE ÎNCEPUT],10))*($B37<=ListăCursuri[ORA DE SFÂRȘIT]),ListăCursuri[UNICE]),ListăCursuri[UNICE],0),2),0)","v":0},{"$f":"IFERROR(INDEX(ListăCursuri[],MATCH(SUMPRODUCT((ListăCursuri[ZIUA]=OrarulCursurilor[[#Headers],[JOI]])*(ROUNDDOWN($B37,10)>=ROUNDDOWN(ListăCursuri[ORA DE ÎNCEPUT],10))*($B37<=ListăCursuri[ORA DE SFÂRȘIT]),ListăCursuri[UNICE]),ListăCursuri[UNICE],0),2),0)","v":0},{"$f":"IFERROR(INDEX(ListăCursuri[],MATCH(SUMPRODUCT((ListăCursuri[ZIUA]=OrarulCursurilor[[#Headers],[VINERI]])*(ROUNDDOWN($B37,10)>=ROUNDDOWN(ListăCursuri[ORA DE ÎNCEPUT],10))*($B37<=ListăCursuri[ORA DE SFÂRȘIT]),ListăCursuri[UNICE]),ListăCursuri[UNICE],0),2),0)","v":0},{"$f":"IFERROR(INDEX(ListăCursuri[],MATCH(SUMPRODUCT((ListăCursuri[ZIUA]=OrarulCursurilor[[#Headers],[SÂMBĂTĂ]])*(ROUNDDOWN($B37,10)>=ROUNDDOWN(ListăCursuri[ORA DE ÎNCEPUT],10))*($B37<=ListăCursuri[ORA DE SFÂRȘIT]),ListăCursuri[UNICE]),ListăCursuri[UNICE],0),2),0)","v":0}]
[null,"16:30:00",{"$f":"IFERROR(INDEX(ListăCursuri[],MATCH(SUMPRODUCT((ListăCursuri[ZIUA]=OrarulCursurilor[[#Headers],[DUMINICĂ]])*(ROUNDDOWN($B38,10)>=ROUNDDOWN(ListăCursuri[ORA DE ÎNCEPUT],10))*($B38<=ListăCursuri[ORA DE SFÂRȘIT]),ListăCursuri[UNICE]),ListăCursuri[UNICE],0),2),0)","v":0},{"$f":"IFERROR(INDEX(ListăCursuri[],MATCH(SUMPRODUCT((ListăCursuri[ZIUA]=OrarulCursurilor[[#Headers],[LUNI]])*(ROUNDDOWN($B38,10)>=ROUNDDOWN(ListăCursuri[ORA DE ÎNCEPUT],10))*($B38<=ListăCursuri[ORA DE SFÂRȘIT]),ListăCursuri[UNICE]),ListăCursuri[UNICE],0),2),0)","v":"OR-111"},{"$f":"IFERROR(INDEX(ListăCursuri[],MATCH(SUMPRODUCT((ListăCursuri[ZIUA]=OrarulCursurilor[[#Headers],[MARȚI]])*(ROUNDDOWN($B38,10)>=ROUNDDOWN(ListăCursuri[ORA DE ÎNCEPUT],10))*($B38<=ListăCursuri[ORA DE SFÂRȘIT]),ListăCursuri[UNICE]),ListăCursuri[UNICE],0),2),0)","v":0},{"$f":"IFERROR(INDEX(ListăCursuri[],MATCH(SUMPRODUCT((ListăCursuri[ZIUA]=OrarulCursurilor[[#Headers],[MIERCURI]])*(ROUNDDOWN($B38,10)>=ROUNDDOWN(ListăCursuri[ORA DE ÎNCEPUT],10))*($B38<=ListăCursuri[ORA DE SFÂRȘIT]),ListăCursuri[UNICE]),ListăCursuri[UNICE],0),2),0)","v":0},{"$f":"IFERROR(INDEX(ListăCursuri[],MATCH(SUMPRODUCT((ListăCursuri[ZIUA]=OrarulCursurilor[[#Headers],[JOI]])*(ROUNDDOWN($B38,10)>=ROUNDDOWN(ListăCursuri[ORA DE ÎNCEPUT],10))*($B38<=ListăCursuri[ORA DE SFÂRȘIT]),ListăCursuri[UNICE]),ListăCursuri[UNICE],0),2),0)","v":0},{"$f":"IFERROR(INDEX(ListăCursuri[],MATCH(SUMPRODUCT((ListăCursuri[ZIUA]=OrarulCursurilor[[#Headers],[VINERI]])*(ROUNDDOWN($B38,10)>=ROUNDDOWN(ListăCursuri[ORA DE ÎNCEPUT],10))*($B38<=ListăCursuri[ORA DE SFÂRȘIT]),ListăCursuri[UNICE]),ListăCursuri[UNICE],0),2),0)","v":0},{"$f":"IFERROR(INDEX(ListăCursuri[],MATCH(SUMPRODUCT((ListăCursuri[ZIUA]=OrarulCursurilor[[#Headers],[SÂMBĂTĂ]])*(ROUNDDOWN($B38,10)>=ROUNDDOWN(ListăCursuri[ORA DE ÎNCEPUT],10))*($B38<=ListăCursuri[ORA DE SFÂRȘIT]),ListăCursuri[UNICE]),ListăCursuri[UNICE],0),2),0)","v":0}]
[null,"16:45:00",{"$f":"IFERROR(INDEX(ListăCursuri[],MATCH(SUMPRODUCT((ListăCursuri[ZIUA]=OrarulCursurilor[[#Headers],[DUMINICĂ]])*(ROUNDDOWN($B39,10)>=ROUNDDOWN(ListăCursuri[ORA DE ÎNCEPUT],10))*($B39<=ListăCursuri[ORA DE SFÂRȘIT]),ListăCursuri[UNICE]),ListăCursuri[UNICE],0),2),0)","v":0},{"$f":"IFERROR(INDEX(ListăCursuri[],MATCH(SUMPRODUCT((ListăCursuri[ZIUA]=OrarulCursurilor[[#Headers],[LUNI]])*(ROUNDDOWN($B39,10)>=ROUNDDOWN(ListăCursuri[ORA DE ÎNCEPUT],10))*($B39<=ListăCursuri[ORA DE SFÂRȘIT]),ListăCursuri[UNICE]),ListăCursuri[UNICE],0),2),0)","v":"OR-111"},{"$f":"IFERROR(INDEX(ListăCursuri[],MATCH(SUMPRODUCT((ListăCursuri[ZIUA]=OrarulCursurilor[[#Headers],[MARȚI]])*(ROUNDDOWN($B39,10)>=ROUNDDOWN(ListăCursuri[ORA DE ÎNCEPUT],10))*($B39<=ListăCursuri[ORA DE SFÂRȘIT]),ListăCursuri[UNICE]),ListăCursuri[UNICE],0),2),0)","v":0},{"$f":"IFERROR(INDEX(ListăCursuri[],MATCH(SUMPRODUCT((ListăCursuri[ZIUA]=OrarulCursurilor[[#Headers],[MIERCURI]])*(ROUNDDOWN($B39,10)>=ROUNDDOWN(ListăCursuri[ORA DE ÎNCEPUT],10))*($B39<=ListăCursuri[ORA DE SFÂRȘIT]),ListăCursuri[UNICE]),ListăCursuri[UNICE],0),2),0)","v":0},{"$f":"IFERROR(INDEX(ListăCursuri[],MATCH(SUMPRODUCT((ListăCursuri[ZIUA]=OrarulCursurilor[[#Headers],[JOI]])*(ROUNDDOWN($B39,10)>=ROUNDDOWN(ListăCursuri[ORA DE ÎNCEPUT],10))*($B39<=ListăCursuri[ORA DE SFÂRȘIT]),ListăCursuri[UNICE]),ListăCursuri[UNICE],0),2),0)","v":0},{"$f":"IFERROR(INDEX(ListăCursuri[],MATCH(SUMPRODUCT((ListăCursuri[ZIUA]=OrarulCursurilor[[#Headers],[VINERI]])*(ROUNDDOWN($B39,10)>=ROUNDDOWN(ListăCursuri[ORA DE ÎNCEPUT],10))*($B39<=ListăCursuri[ORA DE SFÂRȘIT]),ListăCursuri[UNICE]),ListăCursuri[UNICE],0),2),0)","v":0},{"$f":"IFERROR(INDEX(ListăCursuri[],MATCH(SUMPRODUCT((ListăCursuri[ZIUA]=OrarulCursurilor[[#Headers],[SÂMBĂTĂ]])*(ROUNDDOWN($B39,10)>=ROUNDDOWN(ListăCursuri[ORA DE ÎNCEPUT],10))*($B39<=ListăCursuri[ORA DE SFÂRȘIT]),ListăCursuri[UNICE]),ListăCursuri[UNICE],0),2),0)","v":0}]
[null,"17:00:00",{"$f":"IFERROR(INDEX(ListăCursuri[],MATCH(SUMPRODUCT((ListăCursuri[ZIUA]=OrarulCursurilor[[#Headers],[DUMINICĂ]])*(ROUNDDOWN($B40,10)>=ROUNDDOWN(ListăCursuri[ORA DE ÎNCEPUT],10))*($B40<=ListăCursuri[ORA DE SFÂRȘIT]),ListăCursuri[UNICE]),ListăCursuri[UNICE],0),2),0)","v":0},{"$f":"IFERROR(INDEX(ListăCursuri[],MATCH(SUMPRODUCT((ListăCursuri[ZIUA]=OrarulCursurilor[[#Headers],[LUNI]])*(ROUNDDOWN($B40,10)>=ROUNDDOWN(ListăCursuri[ORA DE ÎNCEPUT],10))*($B40<=ListăCursuri[ORA DE SFÂRȘIT]),ListăCursuri[UNICE]),ListăCursuri[UNICE],0),2),0)","v":"OR-111"},{"$f":"IFERROR(INDEX(ListăCursuri[],MATCH(SUMPRODUCT((ListăCursuri[ZIUA]=OrarulCursurilor[[#Headers],[MARȚI]])*(ROUNDDOWN($B40,10)>=ROUNDDOWN(ListăCursuri[ORA DE ÎNCEPUT],10))*($B40<=ListăCursuri[ORA DE SFÂRȘIT]),ListăCursuri[UNICE]),ListăCursuri[UNICE],0),2),0)","v":0},{"$f":"IFERROR(INDEX(ListăCursuri[],MATCH(SUMPRODUCT((ListăCursuri[ZIUA]=OrarulCursurilor[[#Headers],[MIERCURI]])*(ROUNDDOWN($B40,10)>=ROUNDDOWN(ListăCursuri[ORA DE ÎNCEPUT],10))*($B40<=ListăCursuri[ORA DE SFÂRȘIT]),ListăCursuri[UNICE]),ListăCursuri[UNICE],0),2),0)","v":0},{"$f":"IFERROR(INDEX(ListăCursuri[],MATCH(SUMPRODUCT((ListăCursuri[ZIUA]=OrarulCursurilor[[#Headers],[JOI]])*(ROUNDDOWN($B40,10)>=ROUNDDOWN(ListăCursuri[ORA DE ÎNCEPUT],10))*($B40<=ListăCursuri[ORA DE SFÂRȘIT]),ListăCursuri[UNICE]),ListăCursuri[UNICE],0),2),0)","v":0},{"$f":"IFERROR(INDEX(ListăCursuri[],MATCH(SUMPRODUCT((ListăCursuri[ZIUA]=OrarulCursurilor[[#Headers],[VINERI]])*(ROUNDDOWN($B40,10)>=ROUNDDOWN(ListăCursuri[ORA DE ÎNCEPUT],10))*($B40<=ListăCursuri[ORA DE SFÂRȘIT]),ListăCursuri[UNICE]),ListăCursuri[UNICE],0),2),0)","v":0},{"$f":"IFERROR(INDEX(ListăCursuri[],MATCH(SUMPRODUCT((ListăCursuri[ZIUA]=OrarulCursurilor[[#Headers],[SÂMBĂTĂ]])*(ROUNDDOWN($B40,10)>=ROUNDDOWN(ListăCursuri[ORA DE ÎNCEPUT],10))*($B40<=ListăCursuri[ORA DE SFÂRȘIT]),ListăCursuri[UNICE]),ListăCursuri[UNICE],0),2),0)","v":0}]
[null,"17:15:00",{"$f":"IFERROR(INDEX(ListăCursuri[],MATCH(SUMPRODUCT((ListăCursuri[ZIUA]=OrarulCursurilor[[#Headers],[DUMINICĂ]])*(ROUNDDOWN($B41,10)>=ROUNDDOWN(ListăCursuri[ORA DE ÎNCEPUT],10))*($B41<=ListăCursuri[ORA DE SFÂRȘIT]),ListăCursuri[UNICE]),ListăCursuri[UNICE],0),2),0)","v":0},{"$f":"IFERROR(INDEX(ListăCursuri[],MATCH(SUMPRODUCT((ListăCursuri[ZIUA]=OrarulCursurilor[[#Headers],[LUNI]])*(ROUNDDOWN($B41,10)>=ROUNDDOWN(ListăCursuri[ORA DE ÎNCEPUT],10))*($B41<=ListăCursuri[ORA DE SFÂRȘIT]),ListăCursuri[UNICE]),ListăCursuri[UNICE],0),2),0)","v":0},{"$f":"IFERROR(INDEX(ListăCursuri[],MATCH(SUMPRODUCT((ListăCursuri[ZIUA]=OrarulCursurilor[[#Headers],[MARȚI]])*(ROUNDDOWN($B41,10)>=ROUNDDOWN(ListăCursuri[ORA DE ÎNCEPUT],10))*($B41<=ListăCursuri[ORA DE SFÂRȘIT]),ListăCursuri[UNICE]),ListăCursuri[UNICE],0),2),0)","v":0},{"$f":"IFERROR(INDEX(ListăCursuri[],MATCH(SUMPRODUCT((ListăCursuri[ZIUA]=OrarulCursurilor[[#Headers],[MIERCURI]])*(ROUNDDOWN($B41,10)>=ROUNDDOWN(ListăCursuri[ORA DE ÎNCEPUT],10))*($B41<=ListăCursuri[ORA DE SFÂRȘIT]),ListăCursuri[UNICE]),ListăCursuri[UNICE],0),2),0)","v":0},{"$f":"IFERROR(INDEX(ListăCursuri[],MATCH(SUMPRODUCT((ListăCursuri[ZIUA]=OrarulCursurilor[[#Headers],[JOI]])*(ROUNDDOWN($B41,10)>=ROUNDDOWN(ListăCursuri[ORA DE ÎNCEPUT],10))*($B41<=ListăCursuri[ORA DE SFÂRȘIT]),ListăCursuri[UNICE]),ListăCursuri[UNICE],0),2),0)","v":0},{"$f":"IFERROR(INDEX(ListăCursuri[],MATCH(SUMPRODUCT((ListăCursuri[ZIUA]=OrarulCursurilor[[#Headers],[VINERI]])*(ROUNDDOWN($B41,10)>=ROUNDDOWN(ListăCursuri[ORA DE ÎNCEPUT],10))*($B41<=ListăCursuri[ORA DE SFÂRȘIT]),ListăCursuri[UNICE]),ListăCursuri[UNICE],0),2),0)","v":0},{"$f":"IFERROR(INDEX(ListăCursuri[],MATCH(SUMPRODUCT((ListăCursuri[ZIUA]=OrarulCursurilor[[#Headers],[SÂMBĂTĂ]])*(ROUNDDOWN($B41,10)>=ROUNDDOWN(ListăCursuri[ORA DE ÎNCEPUT],10))*($B41<=ListăCursuri[ORA DE SFÂRȘIT]),ListăCursuri[UNICE]),ListăCursuri[UNICE],0),2),0)","v":0}]
[null,"17:30:00",{"$f":"IFERROR(INDEX(ListăCursuri[],MATCH(SUMPRODUCT((ListăCursuri[ZIUA]=OrarulCursurilor[[#Headers],[DUMINICĂ]])*(ROUNDDOWN($B42,10)>=ROUNDDOWN(ListăCursuri[ORA DE ÎNCEPUT],10))*($B42<=ListăCursuri[ORA DE SFÂRȘIT]),ListăCursuri[UNICE]),ListăCursuri[UNICE],0),2),0)","v":0},{"$f":"IFERROR(INDEX(ListăCursuri[],MATCH(SUMPRODUCT((ListăCursuri[ZIUA]=OrarulCursurilor[[#Headers],[LUNI]])*(ROUNDDOWN($B42,10)>=ROUNDDOWN(ListăCursuri[ORA DE ÎNCEPUT],10))*($B42<=ListăCursuri[ORA DE SFÂRȘIT]),ListăCursuri[UNICE]),ListăCursuri[UNICE],0),2),0)","v":0},{"$f":"IFERROR(INDEX(ListăCursuri[],MATCH(SUMPRODUCT((ListăCursuri[ZIUA]=OrarulCursurilor[[#Headers],[MARȚI]])*(ROUNDDOWN($B42,10)>=ROUNDDOWN(ListăCursuri[ORA DE ÎNCEPUT],10))*($B42<=ListăCursuri[ORA DE SFÂRȘIT]),ListăCursuri[UNICE]),ListăCursuri[UNICE],0),2),0)","v":0},{"$f":"IFERROR(INDEX(ListăCursuri[],MATCH(SUMPRODUCT((ListăCursuri[ZIUA]=OrarulCursurilor[[#Headers],[MIERCURI]])*(ROUNDDOWN($B42,10)>=ROUNDDOWN(ListăCursuri[ORA DE ÎNCEPUT],10))*($B42<=ListăCursuri[ORA DE SFÂRȘIT]),ListăCursuri[UNICE]),ListăCursuri[UNICE],0),2),0)","v":0},{"$f":"IFERROR(INDEX(ListăCursuri[],MATCH(SUMPRODUCT((ListăCursuri[ZIUA]=OrarulCursurilor[[#Headers],[JOI]])*(ROUNDDOWN($B42,10)>=ROUNDDOWN(ListăCursuri[ORA DE ÎNCEPUT],10))*($B42<=ListăCursuri[ORA DE SFÂRȘIT]),ListăCursuri[UNICE]),ListăCursuri[UNICE],0),2),0)","v":0},{"$f":"IFERROR(INDEX(ListăCursuri[],MATCH(SUMPRODUCT((ListăCursuri[ZIUA]=OrarulCursurilor[[#Headers],[VINERI]])*(ROUNDDOWN($B42,10)>=ROUNDDOWN(ListăCursuri[ORA DE ÎNCEPUT],10))*($B42<=ListăCursuri[ORA DE SFÂRȘIT]),ListăCursuri[UNICE]),ListăCursuri[UNICE],0),2),0)","v":0},{"$f":"IFERROR(INDEX(ListăCursuri[],MATCH(SUMPRODUCT((ListăCursuri[ZIUA]=OrarulCursurilor[[#Headers],[SÂMBĂTĂ]])*(ROUNDDOWN($B42,10)>=ROUNDDOWN(ListăCursuri[ORA DE ÎNCEPUT],10))*($B42<=ListăCursuri[ORA DE SFÂRȘIT]),ListăCursuri[UNICE]),ListăCursuri[UNICE],0),2),0)","v":0}]
[null,"17:45:00",{"$f":"IFERROR(INDEX(ListăCursuri[],MATCH(SUMPRODUCT((ListăCursuri[ZIUA]=OrarulCursurilor[[#Headers],[DUMINICĂ]])*(ROUNDDOWN($B43,10)>=ROUNDDOWN(ListăCursuri[ORA DE ÎNCEPUT],10))*($B43<=ListăCursuri[ORA DE SFÂRȘIT]),ListăCursuri[UNICE]),ListăCursuri[UNICE],0),2),0)","v":0},{"$f":"IFERROR(INDEX(ListăCursuri[],MATCH(SUMPRODUCT((ListăCursuri[ZIUA]=OrarulCursurilor[[#Headers],[LUNI]])*(ROUNDDOWN($B43,10)>=ROUNDDOWN(ListăCursuri[ORA DE ÎNCEPUT],10))*($B43<=ListăCursuri[ORA DE SFÂRȘIT]),ListăCursuri[UNICE]),ListăCursuri[UNICE],0),2),0)","v":0},{"$f":"IFERROR(INDEX(ListăCursuri[],MATCH(SUMPRODUCT((ListăCursuri[ZIUA]=OrarulCursurilor[[#Headers],[MARȚI]])*(ROUNDDOWN($B43,10)>=ROUNDDOWN(ListăCursuri[ORA DE ÎNCEPUT],10))*($B43<=ListăCursuri[ORA DE SFÂRȘIT]),ListăCursuri[UNICE]),ListăCursuri[UNICE],0),2),0)","v":0},{"$f":"IFERROR(INDEX(ListăCursuri[],MATCH(SUMPRODUCT((ListăCursuri[ZIUA]=OrarulCursurilor[[#Headers],[MIERCURI]])*(ROUNDDOWN($B43,10)>=ROUNDDOWN(ListăCursuri[ORA DE ÎNCEPUT],10))*($B43<=ListăCursuri[ORA DE SFÂRȘIT]),ListăCursuri[UNICE]),ListăCursuri[UNICE],0),2),0)","v":0},{"$f":"IFERROR(INDEX(ListăCursuri[],MATCH(SUMPRODUCT((ListăCursuri[ZIUA]=OrarulCursurilor[[#Headers],[JOI]])*(ROUNDDOWN($B43,10)>=ROUNDDOWN(ListăCursuri[ORA DE ÎNCEPUT],10))*($B43<=ListăCursuri[ORA DE SFÂRȘIT]),ListăCursuri[UNICE]),ListăCursuri[UNICE],0),2),0)","v":0},{"$f":"IFERROR(INDEX(ListăCursuri[],MATCH(SUMPRODUCT((ListăCursuri[ZIUA]=OrarulCursurilor[[#Headers],[VINERI]])*(ROUNDDOWN($B43,10)>=ROUNDDOWN(ListăCursuri[ORA DE ÎNCEPUT],10))*($B43<=ListăCursuri[ORA DE SFÂRȘIT]),ListăCursuri[UNICE]),ListăCursuri[UNICE],0),2),0)","v":0},{"$f":"IFERROR(INDEX(ListăCursuri[],MATCH(SUMPRODUCT((ListăCursuri[ZIUA]=OrarulCursurilor[[#Headers],[SÂMBĂTĂ]])*(ROUNDDOWN($B43,10)>=ROUNDDOWN(ListăCursuri[ORA DE ÎNCEPUT],10))*($B43<=ListăCursuri[ORA DE SFÂRȘIT]),ListăCursuri[UNICE]),ListăCursuri[UNICE],0),2),0)","v":0}]
[null,"18:00:00",{"$f":"IFERROR(INDEX(ListăCursuri[],MATCH(SUMPRODUCT((ListăCursuri[ZIUA]=OrarulCursurilor[[#Headers],[DUMINICĂ]])*(ROUNDDOWN($B44,10)>=ROUNDDOWN(ListăCursuri[ORA DE ÎNCEPUT],10))*($B44<=ListăCursuri[ORA DE SFÂRȘIT]),ListăCursuri[UNICE]),ListăCursuri[UNICE],0),2),0)","v":0},{"$f":"IFERROR(INDEX(ListăCursuri[],MATCH(SUMPRODUCT((ListăCursuri[ZIUA]=OrarulCursurilor[[#Headers],[LUNI]])*(ROUNDDOWN($B44,10)>=ROUNDDOWN(ListăCursuri[ORA DE ÎNCEPUT],10))*($B44<=ListăCursuri[ORA DE SFÂRȘIT]),ListăCursuri[UNICE]),ListăCursuri[UNICE],0),2),0)","v":0},{"$f":"IFERROR(INDEX(ListăCursuri[],MATCH(SUMPRODUCT((ListăCursuri[ZIUA]=OrarulCursurilor[[#Headers],[MARȚI]])*(ROUNDDOWN($B44,10)>=ROUNDDOWN(ListăCursuri[ORA DE ÎNCEPUT],10))*($B44<=ListăCursuri[ORA DE SFÂRȘIT]),ListăCursuri[UNICE]),ListăCursuri[UNICE],0),2),0)","v":0},{"$f":"IFERROR(INDEX(ListăCursuri[],MATCH(SUMPRODUCT((ListăCursuri[ZIUA]=OrarulCursurilor[[#Headers],[MIERCURI]])*(ROUNDDOWN($B44,10)>=ROUNDDOWN(ListăCursuri[ORA DE ÎNCEPUT],10))*($B44<=ListăCursuri[ORA DE SFÂRȘIT]),ListăCursuri[UNICE]),ListăCursuri[UNICE],0),2),0)","v":0},{"$f":"IFERROR(INDEX(ListăCursuri[],MATCH(SUMPRODUCT((ListăCursuri[ZIUA]=OrarulCursurilor[[#Headers],[JOI]])*(ROUNDDOWN($B44,10)>=ROUNDDOWN(ListăCursuri[ORA DE ÎNCEPUT],10))*($B44<=ListăCursuri[ORA DE SFÂRȘIT]),ListăCursuri[UNICE]),ListăCursuri[UNICE],0),2),0)","v":0},{"$f":"IFERROR(INDEX(ListăCursuri[],MATCH(SUMPRODUCT((ListăCursuri[ZIUA]=OrarulCursurilor[[#Headers],[VINERI]])*(ROUNDDOWN($B44,10)>=ROUNDDOWN(ListăCursuri[ORA DE ÎNCEPUT],10))*($B44<=ListăCursuri[ORA DE SFÂRȘIT]),ListăCursuri[UNICE]),ListăCursuri[UNICE],0),2),0)","v":0},{"$f":"IFERROR(INDEX(ListăCursuri[],MATCH(SUMPRODUCT((ListăCursuri[ZIUA]=OrarulCursurilor[[#Headers],[SÂMBĂTĂ]])*(ROUNDDOWN($B44,10)>=ROUNDDOWN(ListăCursuri[ORA DE ÎNCEPUT],10))*($B44<=ListăCursuri[ORA DE SFÂRȘIT]),ListăCursuri[UNICE]),ListăCursuri[UNICE],0),2),0)","v":0}]
[null,"18:15:00",{"$f":"IFERROR(INDEX(ListăCursuri[],MATCH(SUMPRODUCT((ListăCursuri[ZIUA]=OrarulCursurilor[[#Headers],[DUMINICĂ]])*(ROUNDDOWN($B45,10)>=ROUNDDOWN(ListăCursuri[ORA DE ÎNCEPUT],10))*($B45<=ListăCursuri[ORA DE SFÂRȘIT]),ListăCursuri[UNICE]),ListăCursuri[UNICE],0),2),0)","v":0},{"$f":"IFERROR(INDEX(ListăCursuri[],MATCH(SUMPRODUCT((ListăCursuri[ZIUA]=OrarulCursurilor[[#Headers],[LUNI]])*(ROUNDDOWN($B45,10)>=ROUNDDOWN(ListăCursuri[ORA DE ÎNCEPUT],10))*($B45<=ListăCursuri[ORA DE SFÂRȘIT]),ListăCursuri[UNICE]),ListăCursuri[UNICE],0),2),0)","v":0},{"$f":"IFERROR(INDEX(ListăCursuri[],MATCH(SUMPRODUCT((ListăCursuri[ZIUA]=OrarulCursurilor[[#Headers],[MARȚI]])*(ROUNDDOWN($B45,10)>=ROUNDDOWN(ListăCursuri[ORA DE ÎNCEPUT],10))*($B45<=ListăCursuri[ORA DE SFÂRȘIT]),ListăCursuri[UNICE]),ListăCursuri[UNICE],0),2),0)","v":0},{"$f":"IFERROR(INDEX(ListăCursuri[],MATCH(SUMPRODUCT((ListăCursuri[ZIUA]=OrarulCursurilor[[#Headers],[MIERCURI]])*(ROUNDDOWN($B45,10)>=ROUNDDOWN(ListăCursuri[ORA DE ÎNCEPUT],10))*($B45<=ListăCursuri[ORA DE SFÂRȘIT]),ListăCursuri[UNICE]),ListăCursuri[UNICE],0),2),0)","v":0},{"$f":"IFERROR(INDEX(ListăCursuri[],MATCH(SUMPRODUCT((ListăCursuri[ZIUA]=OrarulCursurilor[[#Headers],[JOI]])*(ROUNDDOWN($B45,10)>=ROUNDDOWN(ListăCursuri[ORA DE ÎNCEPUT],10))*($B45<=ListăCursuri[ORA DE SFÂRȘIT]),ListăCursuri[UNICE]),ListăCursuri[UNICE],0),2),0)","v":0},{"$f":"IFERROR(INDEX(ListăCursuri[],MATCH(SUMPRODUCT((ListăCursuri[ZIUA]=OrarulCursurilor[[#Headers],[VINERI]])*(ROUNDDOWN($B45,10)>=ROUNDDOWN(ListăCursuri[ORA DE ÎNCEPUT],10))*($B45<=ListăCursuri[ORA DE SFÂRȘIT]),ListăCursuri[UNICE]),ListăCursuri[UNICE],0),2),0)","v":0},{"$f":"IFERROR(INDEX(ListăCursuri[],MATCH(SUMPRODUCT((ListăCursuri[ZIUA]=OrarulCursurilor[[#Headers],[SÂMBĂTĂ]])*(ROUNDDOWN($B45,10)>=ROUNDDOWN(ListăCursuri[ORA DE ÎNCEPUT],10))*($B45<=ListăCursuri[ORA DE SFÂRȘIT]),ListăCursuri[UNICE]),ListăCursuri[UNICE],0),2),0)","v":0}]
[null,"18:30:00",{"$f":"IFERROR(INDEX(ListăCursuri[],MATCH(SUMPRODUCT((ListăCursuri[ZIUA]=OrarulCursurilor[[#Headers],[DUMINICĂ]])*(ROUNDDOWN($B46,10)>=ROUNDDOWN(ListăCursuri[ORA DE ÎNCEPUT],10))*($B46<=ListăCursuri[ORA DE SFÂRȘIT]),ListăCursuri[UNICE]),ListăCursuri[UNICE],0),2),0)","v":0},{"$f":"IFERROR(INDEX(ListăCursuri[],MATCH(SUMPRODUCT((ListăCursuri[ZIUA]=OrarulCursurilor[[#Headers],[LUNI]])*(ROUNDDOWN($B46,10)>=ROUNDDOWN(ListăCursuri[ORA DE ÎNCEPUT],10))*($B46<=ListăCursuri[ORA DE SFÂRȘIT]),ListăCursuri[UNICE]),ListăCursuri[UNICE],0),2),0)","v":0},{"$f":"IFERROR(INDEX(ListăCursuri[],MATCH(SUMPRODUCT((ListăCursuri[ZIUA]=OrarulCursurilor[[#Headers],[MARȚI]])*(ROUNDDOWN($B46,10)>=ROUNDDOWN(ListăCursuri[ORA DE ÎNCEPUT],10))*($B46<=ListăCursuri[ORA DE SFÂRȘIT]),ListăCursuri[UNICE]),ListăCursuri[UNICE],0),2),0)","v":0},{"$f":"IFERROR(INDEX(ListăCursuri[],MATCH(SUMPRODUCT((ListăCursuri[ZIUA]=OrarulCursurilor[[#Headers],[MIERCURI]])*(ROUNDDOWN($B46,10)>=ROUNDDOWN(ListăCursuri[ORA DE ÎNCEPUT],10))*($B46<=ListăCursuri[ORA DE SFÂRȘIT]),ListăCursuri[UNICE]),ListăCursuri[UNICE],0),2),0)","v":0},{"$f":"IFERROR(INDEX(ListăCursuri[],MATCH(SUMPRODUCT((ListăCursuri[ZIUA]=OrarulCursurilor[[#Headers],[JOI]])*(ROUNDDOWN($B46,10)>=ROUNDDOWN(ListăCursuri[ORA DE ÎNCEPUT],10))*($B46<=ListăCursuri[ORA DE SFÂRȘIT]),ListăCursuri[UNICE]),ListăCursuri[UNICE],0),2),0)","v":0},{"$f":"IFERROR(INDEX(ListăCursuri[],MATCH(SUMPRODUCT((ListăCursuri[ZIUA]=OrarulCursurilor[[#Headers],[VINERI]])*(ROUNDDOWN($B46,10)>=ROUNDDOWN(ListăCursuri[ORA DE ÎNCEPUT],10))*($B46<=ListăCursuri[ORA DE SFÂRȘIT]),ListăCursuri[UNICE]),ListăCursuri[UNICE],0),2),0)","v":0},{"$f":"IFERROR(INDEX(ListăCursuri[],MATCH(SUMPRODUCT((ListăCursuri[ZIUA]=OrarulCursurilor[[#Headers],[SÂMBĂTĂ]])*(ROUNDDOWN($B46,10)>=ROUNDDOWN(ListăCursuri[ORA DE ÎNCEPUT],10))*($B46<=ListăCursuri[ORA DE SFÂRȘIT]),ListăCursuri[UNICE]),ListăCursuri[UNICE],0),2),0)","v":0}]
[null,"18:45:00",{"$f":"IFERROR(INDEX(ListăCursuri[],MATCH(SUMPRODUCT((ListăCursuri[ZIUA]=OrarulCursurilor[[#Headers],[DUMINICĂ]])*(ROUNDDOWN($B47,10)>=ROUNDDOWN(ListăCursuri[ORA DE ÎNCEPUT],10))*($B47<=ListăCursuri[ORA DE SFÂRȘIT]),ListăCursuri[UNICE]),ListăCursuri[UNICE],0),2),0)","v":0},{"$f":"IFERROR(INDEX(ListăCursuri[],MATCH(SUMPRODUCT((ListăCursuri[ZIUA]=OrarulCursurilor[[#Headers],[LUNI]])*(ROUNDDOWN($B47,10)>=ROUNDDOWN(ListăCursuri[ORA DE ÎNCEPUT],10))*($B47<=ListăCursuri[ORA DE SFÂRȘIT]),ListăCursuri[UNICE]),ListăCursuri[UNICE],0),2),0)","v":0},{"$f":"IFERROR(INDEX(ListăCursuri[],MATCH(SUMPRODUCT((ListăCursuri[ZIUA]=OrarulCursurilor[[#Headers],[MARȚI]])*(ROUNDDOWN($B47,10)>=ROUNDDOWN(ListăCursuri[ORA DE ÎNCEPUT],10))*($B47<=ListăCursuri[ORA DE SFÂRȘIT]),ListăCursuri[UNICE]),ListăCursuri[UNICE],0),2),0)","v":0},{"$f":"IFERROR(INDEX(ListăCursuri[],MATCH(SUMPRODUCT((ListăCursuri[ZIUA]=OrarulCursurilor[[#Headers],[MIERCURI]])*(ROUNDDOWN($B47,10)>=ROUNDDOWN(ListăCursuri[ORA DE ÎNCEPUT],10))*($B47<=ListăCursuri[ORA DE SFÂRȘIT]),ListăCursuri[UNICE]),ListăCursuri[UNICE],0),2),0)","v":0},{"$f":"IFERROR(INDEX(ListăCursuri[],MATCH(SUMPRODUCT((ListăCursuri[ZIUA]=OrarulCursurilor[[#Headers],[JOI]])*(ROUNDDOWN($B47,10)>=ROUNDDOWN(ListăCursuri[ORA DE ÎNCEPUT],10))*($B47<=ListăCursuri[ORA DE SFÂRȘIT]),ListăCursuri[UNICE]),ListăCursuri[UNICE],0),2),0)","v":0},{"$f":"IFERROR(INDEX(ListăCursuri[],MATCH(SUMPRODUCT((ListăCursuri[ZIUA]=OrarulCursurilor[[#Headers],[VINERI]])*(ROUNDDOWN($B47,10)>=ROUNDDOWN(ListăCursuri[ORA DE ÎNCEPUT],10))*($B47<=ListăCursuri[ORA DE SFÂRȘIT]),ListăCursuri[UNICE]),ListăCursuri[UNICE],0),2),0)","v":0},{"$f":"IFERROR(INDEX(ListăCursuri[],MATCH(SUMPRODUCT((ListăCursuri[ZIUA]=OrarulCursurilor[[#Headers],[SÂMBĂTĂ]])*(ROUNDDOWN($B47,10)>=ROUNDDOWN(ListăCursuri[ORA DE ÎNCEPUT],10))*($B47<=ListăCursuri[ORA DE SFÂRȘIT]),ListăCursuri[UNICE]),ListăCursuri[UNICE],0),2),0)","v":0}]
[null,"19:00:00",{"$f":"IFERROR(INDEX(ListăCursuri[],MATCH(SUMPRODUCT((ListăCursuri[ZIUA]=OrarulCursurilor[[#Headers],[DUMINICĂ]])*(ROUNDDOWN($B48,10)>=ROUNDDOWN(ListăCursuri[ORA DE ÎNCEPUT],10))*($B48<=ListăCursuri[ORA DE SFÂRȘIT]),ListăCursuri[UNICE]),ListăCursuri[UNICE],0),2),0)","v":0},{"$f":"IFERROR(INDEX(ListăCursuri[],MATCH(SUMPRODUCT((ListăCursuri[ZIUA]=OrarulCursurilor[[#Headers],[LUNI]])*(ROUNDDOWN($B48,10)>=ROUNDDOWN(ListăCursuri[ORA DE ÎNCEPUT],10))*($B48<=ListăCursuri[ORA DE SFÂRȘIT]),ListăCursuri[UNICE]),ListăCursuri[UNICE],0),2),0)","v":0},{"$f":"IFERROR(INDEX(ListăCursuri[],MATCH(SUMPRODUCT((ListăCursuri[ZIUA]=OrarulCursurilor[[#Headers],[MARȚI]])*(ROUNDDOWN($B48,10)>=ROUNDDOWN(ListăCursuri[ORA DE ÎNCEPUT],10))*($B48<=ListăCursuri[ORA DE SFÂRȘIT]),ListăCursuri[UNICE]),ListăCursuri[UNICE],0),2),0)","v":0},{"$f":"IFERROR(INDEX(ListăCursuri[],MATCH(SUMPRODUCT((ListăCursuri[ZIUA]=OrarulCursurilor[[#Headers],[MIERCURI]])*(ROUNDDOWN($B48,10)>=ROUNDDOWN(ListăCursuri[ORA DE ÎNCEPUT],10))*($B48<=ListăCursuri[ORA DE SFÂRȘIT]),ListăCursuri[UNICE]),ListăCursuri[UNICE],0),2),0)","v":0},{"$f":"IFERROR(INDEX(ListăCursuri[],MATCH(SUMPRODUCT((ListăCursuri[ZIUA]=OrarulCursurilor[[#Headers],[JOI]])*(ROUNDDOWN($B48,10)>=ROUNDDOWN(ListăCursuri[ORA DE ÎNCEPUT],10))*($B48<=ListăCursuri[ORA DE SFÂRȘIT]),ListăCursuri[UNICE]),ListăCursuri[UNICE],0),2),0)","v":0},{"$f":"IFERROR(INDEX(ListăCursuri[],MATCH(SUMPRODUCT((ListăCursuri[ZIUA]=OrarulCursurilor[[#Headers],[VINERI]])*(ROUNDDOWN($B48,10)>=ROUNDDOWN(ListăCursuri[ORA DE ÎNCEPUT],10))*($B48<=ListăCursuri[ORA DE SFÂRȘIT]),ListăCursuri[UNICE]),ListăCursuri[UNICE],0),2),0)","v":0},{"$f":"IFERROR(INDEX(ListăCursuri[],MATCH(SUMPRODUCT((ListăCursuri[ZIUA]=OrarulCursurilor[[#Headers],[SÂMBĂTĂ]])*(ROUNDDOWN($B48,10)>=ROUNDDOWN(ListăCursuri[ORA DE ÎNCEPUT],10))*($B48<=ListăCursuri[ORA DE SFÂRȘIT]),ListăCursuri[UNICE]),ListăCursuri[UNICE],0),2),0)","v":0}]
[null,"19:15:00",{"$f":"IFERROR(INDEX(ListăCursuri[],MATCH(SUMPRODUCT((ListăCursuri[ZIUA]=OrarulCursurilor[[#Headers],[DUMINICĂ]])*(ROUNDDOWN($B49,10)>=ROUNDDOWN(ListăCursuri[ORA DE ÎNCEPUT],10))*($B49<=ListăCursuri[ORA DE SFÂRȘIT]),ListăCursuri[UNICE]),ListăCursuri[UNICE],0),2),0)","v":0},{"$f":"IFERROR(INDEX(ListăCursuri[],MATCH(SUMPRODUCT((ListăCursuri[ZIUA]=OrarulCursurilor[[#Headers],[LUNI]])*(ROUNDDOWN($B49,10)>=ROUNDDOWN(ListăCursuri[ORA DE ÎNCEPUT],10))*($B49<=ListăCursuri[ORA DE SFÂRȘIT]),ListăCursuri[UNICE]),ListăCursuri[UNICE],0),2),0)","v":0},{"$f":"IFERROR(INDEX(ListăCursuri[],MATCH(SUMPRODUCT((ListăCursuri[ZIUA]=OrarulCursurilor[[#Headers],[MARȚI]])*(ROUNDDOWN($B49,10)>=ROUNDDOWN(ListăCursuri[ORA DE ÎNCEPUT],10))*($B49<=ListăCursuri[ORA DE SFÂRȘIT]),ListăCursuri[UNICE]),ListăCursuri[UNICE],0),2),0)","v":0},{"$f":"IFERROR(INDEX(ListăCursuri[],MATCH(SUMPRODUCT((ListăCursuri[ZIUA]=OrarulCursurilor[[#Headers],[MIERCURI]])*(ROUNDDOWN($B49,10)>=ROUNDDOWN(ListăCursuri[ORA DE ÎNCEPUT],10))*($B49<=ListăCursuri[ORA DE SFÂRȘIT]),ListăCursuri[UNICE]),ListăCursuri[UNICE],0),2),0)","v":0},{"$f":"IFERROR(INDEX(ListăCursuri[],MATCH(SUMPRODUCT((ListăCursuri[ZIUA]=OrarulCursurilor[[#Headers],[JOI]])*(ROUNDDOWN($B49,10)>=ROUNDDOWN(ListăCursuri[ORA DE ÎNCEPUT],10))*($B49<=ListăCursuri[ORA DE SFÂRȘIT]),ListăCursuri[UNICE]),ListăCursuri[UNICE],0),2),0)","v":0},{"$f":"IFERROR(INDEX(ListăCursuri[],MATCH(SUMPRODUCT((ListăCursuri[ZIUA]=OrarulCursurilor[[#Headers],[VINERI]])*(ROUNDDOWN($B49,10)>=ROUNDDOWN(ListăCursuri[ORA DE ÎNCEPUT],10))*($B49<=ListăCursuri[ORA DE SFÂRȘIT]),ListăCursuri[UNICE]),ListăCursuri[UNICE],0),2),0)","v":0},{"$f":"IFERROR(INDEX(ListăCursuri[],MATCH(SUMPRODUCT((ListăCursuri[ZIUA]=OrarulCursurilor[[#Headers],[SÂMBĂTĂ]])*(ROUNDDOWN($B49,10)>=ROUNDDOWN(ListăCursuri[ORA DE ÎNCEPUT],10))*($B49<=ListăCursuri[ORA DE SFÂRȘIT]),ListăCursuri[UNICE]),ListăCursuri[UNICE],0),2),0)","v":0}]
[null,"19:30:00",{"$f":"IFERROR(INDEX(ListăCursuri[],MATCH(SUMPRODUCT((ListăCursuri[ZIUA]=OrarulCursurilor[[#Headers],[DUMINICĂ]])*(ROUNDDOWN($B50,10)>=ROUNDDOWN(ListăCursuri[ORA DE ÎNCEPUT],10))*($B50<=ListăCursuri[ORA DE SFÂRȘIT]),ListăCursuri[UNICE]),ListăCursuri[UNICE],0),2),0)","v":0},{"$f":"IFERROR(INDEX(ListăCursuri[],MATCH(SUMPRODUCT((ListăCursuri[ZIUA]=OrarulCursurilor[[#Headers],[LUNI]])*(ROUNDDOWN($B50,10)>=ROUNDDOWN(ListăCursuri[ORA DE ÎNCEPUT],10))*($B50<=ListăCursuri[ORA DE SFÂRȘIT]),ListăCursuri[UNICE]),ListăCursuri[UNICE],0),2),0)","v":0},{"$f":"IFERROR(INDEX(ListăCursuri[],MATCH(SUMPRODUCT((ListăCursuri[ZIUA]=OrarulCursurilor[[#Headers],[MARȚI]])*(ROUNDDOWN($B50,10)>=ROUNDDOWN(ListăCursuri[ORA DE ÎNCEPUT],10))*($B50<=ListăCursuri[ORA DE SFÂRȘIT]),ListăCursuri[UNICE]),ListăCursuri[UNICE],0),2),0)","v":0},{"$f":"IFERROR(INDEX(ListăCursuri[],MATCH(SUMPRODUCT((ListăCursuri[ZIUA]=OrarulCursurilor[[#Headers],[MIERCURI]])*(ROUNDDOWN($B50,10)>=ROUNDDOWN(ListăCursuri[ORA DE ÎNCEPUT],10))*($B50<=ListăCursuri[ORA DE SFÂRȘIT]),ListăCursuri[UNICE]),ListăCursuri[UNICE],0),2),0)","v":0},{"$f":"IFERROR(INDEX(ListăCursuri[],MATCH(SUMPRODUCT((ListăCursuri[ZIUA]=OrarulCursurilor[[#Headers],[JOI]])*(ROUNDDOWN($B50,10)>=ROUNDDOWN(ListăCursuri[ORA DE ÎNCEPUT],10))*($B50<=ListăCursuri[ORA DE SFÂRȘIT]),ListăCursuri[UNICE]),ListăCursuri[UNICE],0),2),0)","v":0},{"$f":"IFERROR(INDEX(ListăCursuri[],MATCH(SUMPRODUCT((ListăCursuri[ZIUA]=OrarulCursurilor[[#Headers],[VINERI]])*(ROUNDDOWN($B50,10)>=ROUNDDOWN(ListăCursuri[ORA DE ÎNCEPUT],10))*($B50<=ListăCursuri[ORA DE SFÂRȘIT]),ListăCursuri[UNICE]),ListăCursuri[UNICE],0),2),0)","v":0},{"$f":"IFERROR(INDEX(ListăCursuri[],MATCH(SUMPRODUCT((ListăCursuri[ZIUA]=OrarulCursurilor[[#Headers],[SÂMBĂTĂ]])*(ROUNDDOWN($B50,10)>=ROUNDDOWN(ListăCursuri[ORA DE ÎNCEPUT],10))*($B50<=ListăCursuri[ORA DE SFÂRȘIT]),ListăCursuri[UNICE]),ListăCursuri[UNICE],0),2),0)","v":0}]
[null,"19:45:00",{"$f":"IFERROR(INDEX(ListăCursuri[],MATCH(SUMPRODUCT((ListăCursuri[ZIUA]=OrarulCursurilor[[#Headers],[DUMINICĂ]])*(ROUNDDOWN($B51,10)>=ROUNDDOWN(ListăCursuri[ORA DE ÎNCEPUT],10))*($B51<=ListăCursuri[ORA DE SFÂRȘIT]),ListăCursuri[UNICE]),ListăCursuri[UNICE],0),2),0)","v":0},{"$f":"IFERROR(INDEX(ListăCursuri[],MATCH(SUMPRODUCT((ListăCursuri[ZIUA]=OrarulCursurilor[[#Headers],[LUNI]])*(ROUNDDOWN($B51,10)>=ROUNDDOWN(ListăCursuri[ORA DE ÎNCEPUT],10))*($B51<=ListăCursuri[ORA DE SFÂRȘIT]),ListăCursuri[UNICE]),ListăCursuri[UNICE],0),2),0)","v":0},{"$f":"IFERROR(INDEX(ListăCursuri[],MATCH(SUMPRODUCT((ListăCursuri[ZIUA]=OrarulCursurilor[[#Headers],[MARȚI]])*(ROUNDDOWN($B51,10)>=ROUNDDOWN(ListăCursuri[ORA DE ÎNCEPUT],10))*($B51<=ListăCursuri[ORA DE SFÂRȘIT]),ListăCursuri[UNICE]),ListăCursuri[UNICE],0),2),0)","v":0},{"$f":"IFERROR(INDEX(ListăCursuri[],MATCH(SUMPRODUCT((ListăCursuri[ZIUA]=OrarulCursurilor[[#Headers],[MIERCURI]])*(ROUNDDOWN($B51,10)>=ROUNDDOWN(ListăCursuri[ORA DE ÎNCEPUT],10))*($B51<=ListăCursuri[ORA DE SFÂRȘIT]),ListăCursuri[UNICE]),ListăCursuri[UNICE],0),2),0)","v":0},{"$f":"IFERROR(INDEX(ListăCursuri[],MATCH(SUMPRODUCT((ListăCursuri[ZIUA]=OrarulCursurilor[[#Headers],[JOI]])*(ROUNDDOWN($B51,10)>=ROUNDDOWN(ListăCursuri[ORA DE ÎNCEPUT],10))*($B51<=ListăCursuri[ORA DE SFÂRȘIT]),ListăCursuri[UNICE]),ListăCursuri[UNICE],0),2),0)","v":0},{"$f":"IFERROR(INDEX(ListăCursuri[],MATCH(SUMPRODUCT((ListăCursuri[ZIUA]=OrarulCursurilor[[#Headers],[VINERI]])*(ROUNDDOWN($B51,10)>=ROUNDDOWN(ListăCursuri[ORA DE ÎNCEPUT],10))*($B51<=ListăCursuri[ORA DE SFÂRȘIT]),ListăCursuri[UNICE]),ListăCursuri[UNICE],0),2),0)","v":0},{"$f":"IFERROR(INDEX(ListăCursuri[],MATCH(SUMPRODUCT((ListăCursuri[ZIUA]=OrarulCursurilor[[#Headers],[SÂMBĂTĂ]])*(ROUNDDOWN($B51,10)>=ROUNDDOWN(ListăCursuri[ORA DE ÎNCEPUT],10))*($B51<=ListăCursuri[ORA DE SFÂRȘIT]),ListăCursuri[UNICE]),ListăCursuri[UNICE],0),2),0)","v":0}]
[null,"20:00:00",{"$f":"IFERROR(INDEX(ListăCursuri[],MATCH(SUMPRODUCT((ListăCursuri[ZIUA]=OrarulCursurilor[[#Headers],[DUMINICĂ]])*(ROUNDDOWN($B52,10)>=ROUNDDOWN(ListăCursuri[ORA DE ÎNCEPUT],10))*($B52<=ListăCursuri[ORA DE SFÂRȘIT]),ListăCursuri[UNICE]),ListăCursuri[UNICE],0),2),0)","v":0},{"$f":"IFERROR(INDEX(ListăCursuri[],MATCH(SUMPRODUCT((ListăCursuri[ZIUA]=OrarulCursurilor[[#Headers],[LUNI]])*(ROUNDDOWN($B52,10)>=ROUNDDOWN(ListăCursuri[ORA DE ÎNCEPUT],10))*($B52<=ListăCursuri[ORA DE SFÂRȘIT]),ListăCursuri[UNICE]),ListăCursuri[UNICE],0),2),0)","v":0},{"$f":"IFERROR(INDEX(ListăCursuri[],MATCH(SUMPRODUCT((ListăCursuri[ZIUA]=OrarulCursurilor[[#Headers],[MARȚI]])*(ROUNDDOWN($B52,10)>=ROUNDDOWN(ListăCursuri[ORA DE ÎNCEPUT],10))*($B52<=ListăCursuri[ORA DE SFÂRȘIT]),ListăCursuri[UNICE]),ListăCursuri[UNICE],0),2),0)","v":0},{"$f":"IFERROR(INDEX(ListăCursuri[],MATCH(SUMPRODUCT((ListăCursuri[ZIUA]=OrarulCursurilor[[#Headers],[MIERCURI]])*(ROUNDDOWN($B52,10)>=ROUNDDOWN(ListăCursuri[ORA DE ÎNCEPUT],10))*($B52<=ListăCursuri[ORA DE SFÂRȘIT]),ListăCursuri[UNICE]),ListăCursuri[UNICE],0),2),0)","v":0},{"$f":"IFERROR(INDEX(ListăCursuri[],MATCH(SUMPRODUCT((ListăCursuri[ZIUA]=OrarulCursurilor[[#Headers],[JOI]])*(ROUNDDOWN($B52,10)>=ROUNDDOWN(ListăCursuri[ORA DE ÎNCEPUT],10))*($B52<=ListăCursuri[ORA DE SFÂRȘIT]),ListăCursuri[UNICE]),ListăCursuri[UNICE],0),2),0)","v":0},{"$f":"IFERROR(INDEX(ListăCursuri[],MATCH(SUMPRODUCT((ListăCursuri[ZIUA]=OrarulCursurilor[[#Headers],[VINERI]])*(ROUNDDOWN($B52,10)>=ROUNDDOWN(ListăCursuri[ORA DE ÎNCEPUT],10))*($B52<=ListăCursuri[ORA DE SFÂRȘIT]),ListăCursuri[UNICE]),ListăCursuri[UNICE],0),2),0)","v":0},{"$f":"IFERROR(INDEX(ListăCursuri[],MATCH(SUMPRODUCT((ListăCursuri[ZIUA]=OrarulCursurilor[[#Headers],[SÂMBĂTĂ]])*(ROUNDDOWN($B52,10)>=ROUNDDOWN(ListăCursuri[ORA DE ÎNCEPUT],10))*($B52<=ListăCursuri[ORA DE SFÂRȘIT]),ListăCursuri[UNICE]),ListăCursuri[UNICE],0),2),0)","v":0}]
[null,"20:15:00",{"$f":"IFERROR(INDEX(ListăCursuri[],MATCH(SUMPRODUCT((ListăCursuri[ZIUA]=OrarulCursurilor[[#Headers],[DUMINICĂ]])*(ROUNDDOWN($B53,10)>=ROUNDDOWN(ListăCursuri[ORA DE ÎNCEPUT],10))*($B53<=ListăCursuri[ORA DE SFÂRȘIT]),ListăCursuri[UNICE]),ListăCursuri[UNICE],0),2),0)","v":0},{"$f":"IFERROR(INDEX(ListăCursuri[],MATCH(SUMPRODUCT((ListăCursuri[ZIUA]=OrarulCursurilor[[#Headers],[LUNI]])*(ROUNDDOWN($B53,10)>=ROUNDDOWN(ListăCursuri[ORA DE ÎNCEPUT],10))*($B53<=ListăCursuri[ORA DE SFÂRȘIT]),ListăCursuri[UNICE]),ListăCursuri[UNICE],0),2),0)","v":0},{"$f":"IFERROR(INDEX(ListăCursuri[],MATCH(SUMPRODUCT((ListăCursuri[ZIUA]=OrarulCursurilor[[#Headers],[MARȚI]])*(ROUNDDOWN($B53,10)>=ROUNDDOWN(ListăCursuri[ORA DE ÎNCEPUT],10))*($B53<=ListăCursuri[ORA DE SFÂRȘIT]),ListăCursuri[UNICE]),ListăCursuri[UNICE],0),2),0)","v":0},{"$f":"IFERROR(INDEX(ListăCursuri[],MATCH(SUMPRODUCT((ListăCursuri[ZIUA]=OrarulCursurilor[[#Headers],[MIERCURI]])*(ROUNDDOWN($B53,10)>=ROUNDDOWN(ListăCursuri[ORA DE ÎNCEPUT],10))*($B53<=ListăCursuri[ORA DE SFÂRȘIT]),ListăCursuri[UNICE]),ListăCursuri[UNICE],0),2),0)","v":0},{"$f":"IFERROR(INDEX(ListăCursuri[],MATCH(SUMPRODUCT((ListăCursuri[ZIUA]=OrarulCursurilor[[#Headers],[JOI]])*(ROUNDDOWN($B53,10)>=ROUNDDOWN(ListăCursuri[ORA DE ÎNCEPUT],10))*($B53<=ListăCursuri[ORA DE SFÂRȘIT]),ListăCursuri[UNICE]),ListăCursuri[UNICE],0),2),0)","v":0},{"$f":"IFERROR(INDEX(ListăCursuri[],MATCH(SUMPRODUCT((ListăCursuri[ZIUA]=OrarulCursurilor[[#Headers],[VINERI]])*(ROUNDDOWN($B53,10)>=ROUNDDOWN(ListăCursuri[ORA DE ÎNCEPUT],10))*($B53<=ListăCursuri[ORA DE SFÂRȘIT]),ListăCursuri[UNICE]),ListăCursuri[UNICE],0),2),0)","v":0},{"$f":"IFERROR(INDEX(ListăCursuri[],MATCH(SUMPRODUCT((ListăCursuri[ZIUA]=OrarulCursurilor[[#Headers],[SÂMBĂTĂ]])*(ROUNDDOWN($B53,10)>=ROUNDDOWN(ListăCursuri[ORA DE ÎNCEPUT],10))*($B53<=ListăCursuri[ORA DE SFÂRȘIT]),ListăCursuri[UNICE]),ListăCursuri[UNICE],0),2),0)","v":0}]
[null,"20:30:00",{"$f":"IFERROR(INDEX(ListăCursuri[],MATCH(SUMPRODUCT((ListăCursuri[ZIUA]=OrarulCursurilor[[#Headers],[DUMINICĂ]])*(ROUNDDOWN($B54,10)>=ROUNDDOWN(ListăCursuri[ORA DE ÎNCEPUT],10))*($B54<=ListăCursuri[ORA DE SFÂRȘIT]),ListăCursuri[UNICE]),ListăCursuri[UNICE],0),2),0)","v":0},{"$f":"IFERROR(INDEX(ListăCursuri[],MATCH(SUMPRODUCT((ListăCursuri[ZIUA]=OrarulCursurilor[[#Headers],[LUNI]])*(ROUNDDOWN($B54,10)>=ROUNDDOWN(ListăCursuri[ORA DE ÎNCEPUT],10))*($B54<=ListăCursuri[ORA DE SFÂRȘIT]),ListăCursuri[UNICE]),ListăCursuri[UNICE],0),2),0)","v":0},{"$f":"IFERROR(INDEX(ListăCursuri[],MATCH(SUMPRODUCT((ListăCursuri[ZIUA]=OrarulCursurilor[[#Headers],[MARȚI]])*(ROUNDDOWN($B54,10)>=ROUNDDOWN(ListăCursuri[ORA DE ÎNCEPUT],10))*($B54<=ListăCursuri[ORA DE SFÂRȘIT]),ListăCursuri[UNICE]),ListăCursuri[UNICE],0),2),0)","v":0},{"$f":"IFERROR(INDEX(ListăCursuri[],MATCH(SUMPRODUCT((ListăCursuri[ZIUA]=OrarulCursurilor[[#Headers],[MIERCURI]])*(ROUNDDOWN($B54,10)>=ROUNDDOWN(ListăCursuri[ORA DE ÎNCEPUT],10))*($B54<=ListăCursuri[ORA DE SFÂRȘIT]),ListăCursuri[UNICE]),ListăCursuri[UNICE],0),2),0)","v":0},{"$f":"IFERROR(INDEX(ListăCursuri[],MATCH(SUMPRODUCT((ListăCursuri[ZIUA]=OrarulCursurilor[[#Headers],[JOI]])*(ROUNDDOWN($B54,10)>=ROUNDDOWN(ListăCursuri[ORA DE ÎNCEPUT],10))*($B54<=ListăCursuri[ORA DE SFÂRȘIT]),ListăCursuri[UNICE]),ListăCursuri[UNICE],0),2),0)","v":0},{"$f":"IFERROR(INDEX(ListăCursuri[],MATCH(SUMPRODUCT((ListăCursuri[ZIUA]=OrarulCursurilor[[#Headers],[VINERI]])*(ROUNDDOWN($B54,10)>=ROUNDDOWN(ListăCursuri[ORA DE ÎNCEPUT],10))*($B54<=ListăCursuri[ORA DE SFÂRȘIT]),ListăCursuri[UNICE]),ListăCursuri[UNICE],0),2),0)","v":0},{"$f":"IFERROR(INDEX(ListăCursuri[],MATCH(SUMPRODUCT((ListăCursuri[ZIUA]=OrarulCursurilor[[#Headers],[SÂMBĂTĂ]])*(ROUNDDOWN($B54,10)>=ROUNDDOWN(ListăCursuri[ORA DE ÎNCEPUT],10))*($B54<=ListăCursuri[ORA DE SFÂRȘIT]),ListăCursuri[UNICE]),ListăCursuri[UNICE],0),2),0)","v":0}]
[null,"20:45:00",{"$f":"IFERROR(INDEX(ListăCursuri[],MATCH(SUMPRODUCT((ListăCursuri[ZIUA]=OrarulCursurilor[[#Headers],[DUMINICĂ]])*(ROUNDDOWN($B55,10)>=ROUNDDOWN(ListăCursuri[ORA DE ÎNCEPUT],10))*($B55<=ListăCursuri[ORA DE SFÂRȘIT]),ListăCursuri[UNICE]),ListăCursuri[UNICE],0),2),0)","v":0},{"$f":"IFERROR(INDEX(ListăCursuri[],MATCH(SUMPRODUCT((ListăCursuri[ZIUA]=OrarulCursurilor[[#Headers],[LUNI]])*(ROUNDDOWN($B55,10)>=ROUNDDOWN(ListăCursuri[ORA DE ÎNCEPUT],10))*($B55<=ListăCursuri[ORA DE SFÂRȘIT]),ListăCursuri[UNICE]),ListăCursuri[UNICE],0),2),0)","v":0},{"$f":"IFERROR(INDEX(ListăCursuri[],MATCH(SUMPRODUCT((ListăCursuri[ZIUA]=OrarulCursurilor[[#Headers],[MARȚI]])*(ROUNDDOWN($B55,10)>=ROUNDDOWN(ListăCursuri[ORA DE ÎNCEPUT],10))*($B55<=ListăCursuri[ORA DE SFÂRȘIT]),ListăCursuri[UNICE]),ListăCursuri[UNICE],0),2),0)","v":0},{"$f":"IFERROR(INDEX(ListăCursuri[],MATCH(SUMPRODUCT((ListăCursuri[ZIUA]=OrarulCursurilor[[#Headers],[MIERCURI]])*(ROUNDDOWN($B55,10)>=ROUNDDOWN(ListăCursuri[ORA DE ÎNCEPUT],10))*($B55<=ListăCursuri[ORA DE SFÂRȘIT]),ListăCursuri[UNICE]),ListăCursuri[UNICE],0),2),0)","v":0},{"$f":"IFERROR(INDEX(ListăCursuri[],MATCH(SUMPRODUCT((ListăCursuri[ZIUA]=OrarulCursurilor[[#Headers],[JOI]])*(ROUNDDOWN($B55,10)>=ROUNDDOWN(ListăCursuri[ORA DE ÎNCEPUT],10))*($B55<=ListăCursuri[ORA DE SFÂRȘIT]),ListăCursuri[UNICE]),ListăCursuri[UNICE],0),2),0)","v":0},{"$f":"IFERROR(INDEX(ListăCursuri[],MATCH(SUMPRODUCT((ListăCursuri[ZIUA]=OrarulCursurilor[[#Headers],[VINERI]])*(ROUNDDOWN($B55,10)>=ROUNDDOWN(ListăCursuri[ORA DE ÎNCEPUT],10))*($B55<=ListăCursuri[ORA DE SFÂRȘIT]),ListăCursuri[UNICE]),ListăCursuri[UNICE],0),2),0)","v":0},{"$f":"IFERROR(INDEX(ListăCursuri[],MATCH(SUMPRODUCT((ListăCursuri[ZIUA]=OrarulCursurilor[[#Headers],[SÂMBĂTĂ]])*(ROUNDDOWN($B55,10)>=ROUNDDOWN(ListăCursuri[ORA DE ÎNCEPUT],10))*($B55<=ListăCursuri[ORA DE SFÂRȘIT]),ListăCursuri[UNICE]),ListăCursuri[UNICE],0),2),0)","v":0}]
[null,"21:00:00",{"$f":"IFERROR(INDEX(ListăCursuri[],MATCH(SUMPRODUCT((ListăCursuri[ZIUA]=OrarulCursurilor[[#Headers],[DUMINICĂ]])*(ROUNDDOWN($B56,10)>=ROUNDDOWN(ListăCursuri[ORA DE ÎNCEPUT],10))*($B56<=ListăCursuri[ORA DE SFÂRȘIT]),ListăCursuri[UNICE]),ListăCursuri[UNICE],0),2),0)","v":0},{"$f":"IFERROR(INDEX(ListăCursuri[],MATCH(SUMPRODUCT((ListăCursuri[ZIUA]=OrarulCursurilor[[#Headers],[LUNI]])*(ROUNDDOWN($B56,10)>=ROUNDDOWN(ListăCursuri[ORA DE ÎNCEPUT],10))*($B56<=ListăCursuri[ORA DE SFÂRȘIT]),ListăCursuri[UNICE]),ListăCursuri[UNICE],0),2),0)","v":0},{"$f":"IFERROR(INDEX(ListăCursuri[],MATCH(SUMPRODUCT((ListăCursuri[ZIUA]=OrarulCursurilor[[#Headers],[MARȚI]])*(ROUNDDOWN($B56,10)>=ROUNDDOWN(ListăCursuri[ORA DE ÎNCEPUT],10))*($B56<=ListăCursuri[ORA DE SFÂRȘIT]),ListăCursuri[UNICE]),ListăCursuri[UNICE],0),2),0)","v":0},{"$f":"IFERROR(INDEX(ListăCursuri[],MATCH(SUMPRODUCT((ListăCursuri[ZIUA]=OrarulCursurilor[[#Headers],[MIERCURI]])*(ROUNDDOWN($B56,10)>=ROUNDDOWN(ListăCursuri[ORA DE ÎNCEPUT],10))*($B56<=ListăCursuri[ORA DE SFÂRȘIT]),ListăCursuri[UNICE]),ListăCursuri[UNICE],0),2),0)","v":0},{"$f":"IFERROR(INDEX(ListăCursuri[],MATCH(SUMPRODUCT((ListăCursuri[ZIUA]=OrarulCursurilor[[#Headers],[JOI]])*(ROUNDDOWN($B56,10)>=ROUNDDOWN(ListăCursuri[ORA DE ÎNCEPUT],10))*($B56<=ListăCursuri[ORA DE SFÂRȘIT]),ListăCursuri[UNICE]),ListăCursuri[UNICE],0),2),0)","v":0},{"$f":"IFERROR(INDEX(ListăCursuri[],MATCH(SUMPRODUCT((ListăCursuri[ZIUA]=OrarulCursurilor[[#Headers],[VINERI]])*(ROUNDDOWN($B56,10)>=ROUNDDOWN(ListăCursuri[ORA DE ÎNCEPUT],10))*($B56<=ListăCursuri[ORA DE SFÂRȘIT]),ListăCursuri[UNICE]),ListăCursuri[UNICE],0),2),0)","v":0},{"$f":"IFERROR(INDEX(ListăCursuri[],MATCH(SUMPRODUCT((ListăCursuri[ZIUA]=OrarulCursurilor[[#Headers],[SÂMBĂTĂ]])*(ROUNDDOWN($B56,10)>=ROUNDDOWN(ListăCursuri[ORA DE ÎNCEPUT],10))*($B56<=ListăCursuri[ORA DE SFÂRȘIT]),ListăCursuri[UNICE]),ListăCursuri[UNICE],0),2),0)","v":0}]

{"sheet":"Listă cursuri","index":1,"n_rows":10,"n_cols":8,"rows_kept":10,"merged":[[0,1,0,5],[0,6,0,7]]}
[null,"LISTĂ CURSURI",{"$nulls":4},"Planificare cursuri"]
[null,"CURS","ID","ZIUA","LOCAȚIE","ORA DE ÎNCEPUT","ORA DE SFÂRȘIT","UNICE"]
[null,"Scriere tehnică","SC-121","LUNI","Clădirea A","13:00:00","14:00:00",{"$f":"ROW()-ROW(ListăCursuri[[#Headers],[UNICE]])","v":1}]
[null,"Scriere tehnică","SC-121","MIERCURI","Clădirea A","13:00:00","14:00:00",{"$f":"ROW()-ROW(ListăCursuri[[#Headers],[UNICE]])","v":2}]
[null,"Oratorie","OR-111","LUNI","Clădirea B","16:00:00","17:00:00",{"$f":"ROW()-ROW(ListăCursuri[[#Headers],[UNICE]])","v":3}]
[null,"Sănătate și fitness","SAN-295","MARȚI","Clădirea B","11:00:00","12:00:00",{"$f":"ROW()-ROW(ListăCursuri[[#Headers],[UNICE]])","v":4}]
[null,"Sănătate și fitness","SAN-295","JOI","Clădirea B","11:00:00","12:00:00",{"$f":"ROW()-ROW(ListăCursuri[[#Headers],[UNICE]])","v":5}]
[null,"Algebră","MAT-113","LUNI","Clădirea C","08:10:00","09:15:00",{"$f":"ROW()-ROW(ListăCursuri[[#Headers],[UNICE]])","v":6}]
[null,"Algebră","MAT-113","MIERCURI","Clădirea C","08:10:00","09:15:00",{"$f":"ROW()-ROW(ListăCursuri[[#Headers],[UNICE]])","v":7}]
[null,"Algebră","MAT-113","VINERI","Clădirea C","08:10:00","09:15:00",{"$f":"ROW()-ROW(ListăCursuri[[#Headers],[UNICE]])","v":8}]